Workbook

Sheet Design
A1: ALLEGRO ALT80802 DESIGN SPREADSHEET for Buck-Boost - Rev. 2.0
A2: INSTRUCTIONS: Enter design goals and component values in the white boxes. ***Ensure "Iterative Calculation" is enabled under File -> Options -> Formulas***
A3: VARIABLES | B3: MIN | C3: TYP | D3: MAX | E3: UNITS | F3: COMMENTS
A4: Vin | B4: 6 | C4: 13.5 | D4: 18 | E4: V | F4: =IF(B4<VIN_MIN_IC,"Vin_min is lower than minimum VIN level",IF((VIN_MAX_app+VOUT)>VIN_MAX_IC,"Vin_max is higher than maximum VIN level","Steady-state input operating voltages")) -> Steady-state input operating voltages
A5: LED Current Target | B5: ‒ | C5: 0.35 | D5: ‒ | E5: A | F5: =IF(COUNTIF(Efficiency!AA4:AA48,"TSD")>0,"IC may overheat!","Desired output Current (recommended 0.1A-1A)") -> Desired output Current (recommended 0.1A-1A)
A6: Number of LEDs | B6: ‒ | C6: 4 | D6: ‒ | E6: ‒ | F6: =IF(VOUT>=Constants!B9, "Output voltage is higher than the output voltage limit","Recommended 1-4 white LEDs or 1-6 red LEDs") -> Recommended 1-4 white LEDs or 1-6 red LEDs
A7: LED Forward Voltage | B7: ‒ | C7: 3.05 | D7: ‒ | E7: V | F7: Typical value @ target LED current
A8: RLED | B8: ‒ | C8: 0.9 | D8: ‒ | E8: Ω | F8: LED resistance @ operating current
A9: CS Resistor Tolerance | B9: ‒ | C9: 1 | D9: 1.6 | E9: % | F9: 1% initial tolerance + 100ppm @ 60°C rise
A10: Lo_tolerance | B10: -20 | C10: ‒ | D10: 20 | E10: % | F10: Output inductor tolerances
A11: RTHJA | B11: ‒ | C11: 45 | D11: ‒ | E11: °C/W | F11: Thermal resistance, 4 layer PCB, default value is 45
A12: Desired fsw | B12: ‒ | C12: 2 | D12: ‒ | E12: MHz | F12: Desired switching frequency
A13: TAMB | B13: ‒ | C13: ‒ | D13: 85 | E13: °C | F13: Maximum steady-state ambient temperature
A14: DIODE (D1) CHARACTERIZATION | D14: UNITS | E14: COMMENTS
A15: VF_nominal | B15: 0.7 | C15: 0.42 | D15: A | VF | E15: VF at nominal output current + input current, nominal VIN@25 °C
B16: 0.2 | C16: 0.36 | D16: A | VF | E16: From D1 datasheet
B17: 0.6 | C17: 0.407 | D17: A | VF | E17: From D1 datasheet
B18: 1 | C18: 0.435 | D18: A | VF | E18: From D1 datasheet
B19: 2 | C19: 0.48 | D19: A | VF | E19: From D1 datasheet
B20: 4 | C20: 0.57 | D20: A | VF | E20: From D1 datasheet
A21: VF, Temp. Coeff. | B21: -1 | D21: mV/°C | E21: Estimated value from the data sheet for D1
A22: RTHAVG | B22: 55 | D22: °C/W | E22: Value from the data sheet for D1 (average of min/max)
A23: **** Note: The applications schematic is shown at the bottom of this TAB. **** Schematic component values are shown in BLUE. | I23: Diode D1: Example I-V Characteristics
A24: COMPONENT | B24: VALUE | C24: UNITS | D24: COMMENTS
A25: Feedback Component Calculations (Must enter RSENSE values for the remaining calculations to be accurate)
A26: RSENSE_calc | B26: =(Constants!C4)/(Design!C5) -> 0.5714285714 | C26: Ω | D26: Recommended CS resistor value
A27: RSENSE = | B27: 0.571 | C27: Ω | D27: Choose a standard resistor value, or combination of values
A29: Typical & Worst Case Output Current Calculations:
A30: IOUT (min|typ|max) | B30: =Constants!B4/(IF(ISBLANK(RFB_1),$B$26,RFB_1)*(1+C9/100)) -> 0.3329229595 | C30: =Constants!C4/IF(ISBLANK(RFB_1),$B$26,RFB_1) -> 0.350262697 | D30: =Constants!D4/(IF(ISBLANK(RFB_1),$B$26,RFB_1)*(1-C9/100)) -> 0.3679527322 | E30: Includes worst case IC & component variations vs. temperature
A31: Output Voltage | B31: ‒ | C31: =C6*C7+V_cs -> 12.4 | D31: ‒
A32: System Duty Cycle | B32: =MIN(Efficiency!D6:D25) -> 0.4183647722 | C32: =Efficiency!D26 -> 0.4906609485 | D32: =MAX(Efficiency!D6:D26) -> 0.6918948506 | E32: Range of system duty-cycles given Vin, Vout, Iout, VF, etc
A33: IIN (min|typ|max) | B33: =MIN(Efficiency!Y6:Y25) -> 0.6022033747 | C33: =Efficiency!Y26 -> 0.6876808208 | D33: =MAX(Efficiency!Y6:Y25) -> 1.136828442 | E33: Includes worst case IC & component variations vs. temperature
A34: Switching Frequency Determination:
A35: fsw_max | B35: =MIN($B$32/Constants!D$19/10^-9/10^6, Constants!D16) -> 2.5 | C35: MHz | D35: Recommended maximum PWM frequency, before possible pulse skipping
A36: fsw = | B36: =fsw_desire -> 2 | C36: MHz | D36: Chosen Fsw | E36: =IF(D32>B40," See the DROPOUT tab for operation approaching Vin_min "," ") -> 
A37: RFREQ | B37: =(IF((10^(LOG(16.256*fsw^(-1.025))-INT(LOG(16.256*fsw^(-1.025))))*100)-VLOOKUP((10^(LOG(16.256*fsw^(-1.025))-INT(LOG(16.256*fsw^(-1.025))))*100),E96_s:E96_f,1)<VLOOKUP((10^(LOG(16.256*fsw^(-1.025))-INT(LOG(16.256*fsw^(-1.025))))*100),E96_s:E96_f,2)-(10^(LOG(16.256*fsw^(-1.025))-INT(LOG(16.256*fsw^(-1.025))))*100),VLOOKUP((10^(LOG(16.256*fsw^(-1.025))-INT(LOG(16.256*fsw^(-1.025))))*100),E96_s:E96_f,1),VLOOKUP((10^(LOG(16.256*fsw^(-1.025))-INT(LOG(16.256*fsw^(-1.025))))*100),E96_s:E96_f,2)))*10^INT(LOG(16.256*fsw^(-1.025)))/100 -> 8.06 | C37: kΩ | D37: Use the closest available 1% standard resister value
A38: Tsw | B38: =1000*1/fsw -> 500 | C38: ns | D38: Typical switching period calculated from chosen fsw
A39: Duty CycleMIN | B39: =fsw*mega*Constants!C19*nano -> 0.16 | C39: =fsw*mega*Constants!D19*nano -> 0.2 | D39: (TYP | MAX) Minimum duty cycles at the chosen Fsw given tON,TYP, tON,MAX
A40: Duty CycleMAX | B40: =(Tsw-Min_tOFF_typ)/Tsw -> 0.8 | C40: ‒ | D40: (MIN | TYP) Maximum duty cycles at the chosen Fsw given tOFF,TYP, tOFF,MAX
A41: Output Inductor Calculations:
A42: Se | B42: =Se_2MHz*(1/(2*mega)-0.0000001)/(1/(fsw*mega)-0.0000001) -> 3.1 | C42: A/µs | D42: Slope compensation at selected switching frequency
A43: Lo_min | B43: =(MAX(VOUT/(2*Se_p)/(1+B10/100),VOUT*(1-B32)^2/(2*Iout_sys_min*fsw*(1-Constants!C18/100)*(1+fsw_tol_min/100))))/(1+B10/100) -> 4.605356456 | C43: µH | D43: Recommended minimum output inductance value to avoid DCM and sub-harmonics
A44: Lo_max | B44: =2.5*VOUT/(Se_p) -> 10 | C44: µH | D44: Recommended maximum output Inductance value for slope compensation
A45: Lo_est | B45: =VOUT/Se_p*(1-0.18/D_max) -> 3.1 | C45: µH | D45: Optimum output inductance value for matching slope compensation
A46: Lo = | B46: 4.7 | C46: µH | D46: Choose Lo, considering Lo_est (choose next highest standard value)
A47: LoDCR = | B47: 33.1 | C47: mΩ | D47: Enter the output inductor's DCR
A48: ΔILo_typ | B48: =(Vin_nom)/(L_buckboost*micro)*$C$32*Tsw*nano -> 0.7046726388 | C48: APP | D48: Typical peak to peak output inductor ripple current
A49: ΔILo_max | B49: =VOUT/((1+B10/100)*L_buckboost*micro)*(1-Design!B32)/((1+fsw_tol_min/100)*(1-Constants!C18/100)*fsw*mega) -> 1.121730251 | C49: APP | D49: Worst case maximum inductor ripple current
A50: Lo_I_min | B50: =Iout_sys_min+IIN_sys_min-B49/2 -> 0.3742612085 | C50: AVALLEY | D50: Lowest valley inductor current(At high VIN). Make sure it is above 0 to avoid DCM.
A51: Lo_I_max | B51: =Iout_sys_max+IIN_sys_max+B49/2 -> 2.0656463 | C51: APEAK | D51: This value should not exceed the inductor's specified saturation current
A52: ILIMMARGIN | B52: =Constants!C30+Constants!C29*B32-B51 -> 2.882819033 | C52: A | D52: Current limit margin (minimum) before possible duty-cycle limit
A53: Output Capacitor and Output Voltage Ripple: | L53: Typical Schematic
A54: Allowed ILED Ripple | B54: 50 | C54: mA | D54: Maximum peak to peak LED current ripple allowed for the application
A55: Recommended COUT | B55: =10^6*Iout_typ*C32*Tsw*10^-9/(B54*RLED*milli*C6) -> 0.4773895198 | C55: µF | D55: Recommended minimum output capacitance
A56: Actual COUT | B56: 1 | C56: µF | D56: Actual value used
A57: ESR | B57: 3 | C57: mΩ | D57: Enter ESR value for selected capacitor
A58: ΔVout | B58: =B48*B57+Iout_typ*D_typ/(fsw*mega*Cout*nano) -> 88.04413148 | C58: mV | D58: Estimated typical output peak to peak voltage ripple
A59: ΔIout | B59: =B58/(RLED*C6) -> 24.45670319 | C59: mA | D59: Estimated typical output peak to peak current ripple
A60: Asynchronous Diode Requirement:
A61: VR | B61: =Constants!D3*1.2 -> 60 | D61: The asynchronous diode must be rated higher than this voltage
A62: IF,RMS | B62: =SQRT(Iout_typ^2/(1-D32)*(7/6)) -> 0.6815815155 | C62: ARMS | D62: The asynchronous diode must be rated higher than this current value
A63: Input Capacitor Requirements:
A64: Allowed input ripple | B64: 50 | C64: mV | D64: Maximum peak to peak input voltage ripple allowed for the application
A65: Cin_min | B65: =IOUT*D32/(0.8*fsw*0.05) -> 3.027039971 | C65: µF | D65: Recommended minimum input capacitor with 50mV ripple
A66: Actual CIN | B66: 4.7 | C66: µF | D66: Selected input cap
A67: Cin_IRMS | B67: =SQRT(D32*((1+D32)/(1-D32)*Iout_typ^2+B49^2/12)) -> 0.733944546 | C67: ARMS | D67: Input capacitance RMS current requirement (please check the temp. rise characteristics)
A68: **** Note: The compensation components section only gives a basic estimate result **** All the compensation components value need to be fine-tuned in a real system by bode plot measurement or transient tests
A69: Compensation Components:
A70: fRHPZ | B70: =10^3*RLED*(1-D_typ)^2/(L_buckboost*D_typ) -> 101.2458214 | C70: kHz | D70: Right half plane zero of buckboost
A71: fcMAX | B71: =MIN(1000*IF(ISBLANK(B36),B35,B36)/11,75,B70/5) -> 20.24916427 | C71: kHz | D71: Recommended maximum 0dB crossover frequency of the system
A72: fc = | B72: 20 | C72: kHz | D72: Choose fc considering fcMAX. Higher fc = faster system, lower stability margins
A73: R_LOADTYP | B73: =RLED -> 0.9 | C73: Ω | D73: Compensation is based on average current: ΔILo/2 < Iout < IoutMAX
A74: fP(PS) | B74: =1000*(1+D_typ)/(2*PI()*RLED*Cout) -> 263.6067316 | C74: kHz | D74: Dominant pole formed by the output capacitance and the load
A75: Loop Gain (dB) | B75: =20*LOG10((1-D_typ)/(1+D_typ)*gm_POWER)+20*LOG10(RFB_1)+Constants!C10 -> 64.89013437 | C75: dB | D75: DC overall loop gain
A76: fP(ea)_target | B76: =fc*kilo/(10^(B75/20)) -> 11.38998827 | C76: Hz | D76: Target first error amplifier pole
A77: Rz | B77: =1000/(2*PI()*B81*B74) -> 0.4025060163 | C77: kΩ | D77: Recommended Rz to cancel the dominant power stage pole
A78: Rz_Max | B78: =1000/(2*PI()*B81*MIN(B72*3,B74)) -> 1.768388257 | C78: kΩ | D78: Maximum Rz for faster step response
A79: Actual Rz | B79: 1.2 | C79: kΩ | D79: Choose the closest available 1% standard resister value.
A80: Cz | B80: =1*giga/(2*PI()*RO_ea_IC*mega*Design!B76) -> 1.676787782 | C80: nF | D80: Recommended compensation capacitor, use closest available value
A81: Actual Cz | B81: 1.5 | C81: nF | D81: Chosen Cz
A82: Cp | B82: 22 | C82: pF | D82: Recommended HF compensation capacitor, use closest available value
A83: Actual Cp | B83: 22 | C83: pF | D83: Chosen Cp
A84: Optional Binning Components
A85: Bin 1 (maximum current) | B85: 100 | C85: % | D85: Maximum current with no binning resistor
A86: Bin 2 | B86: 90 | C86: % | D86: Current value as a percentage for maximum current
A87: Bin 3 | B87: 80 | C87: % | D87: Current value as a percentage for maximum current
A88: Bin 4 (Minimum current) | B88: 70 | C88: % | D88: Current value as a percentage for maximum current
A89: Lowest Bin Coefficient | B89: 0.95 | D89: Must be less than 1. Change value to fine tune BINNING accuracy
A90: R2 | B90: 2 | C90: kΩ | D90: Enter R2 in kΩ, recommend 1kΩ to 3 kΩ | J90: =R_3 -> 118
A92: Recommended R1 | B92: =IF(I100<1,I100*1000,I100) -> 1 | K92: =R_1 -> 1
A93: Recommended R2 | B93: =IF(B90<1,B90*1000,B90) -> 2
A94: Recommended R3 | B94: =IF(I101<1,I101*1000,I101) -> 118 | J94: =R_2 -> 2
A95: Recommended Rsense | B95: =((I100+B90)/B90*V_cs)/C30 -> 0.8565
A96: Estimated Power Loss | B96: =MAX(E99:E102) -> 0.1050788091 | K96: =Rsense -> 0.8565
K97: =B96 -> 0.1050788091
A98: NONE | C98: Iout | D98: Actual % | E98: Rsense Power | F98: VLED-
A99: BIN1 | B99: Open | C99: =(I100+B90)/B90*V_cs/Rsense -> 0.350262697 | D99: 1 | E99: =C99^2*Rsense -> 0.1050788091 | F99: =C99*Rsense -> 0.3 | J99: Coefficient
A100: BIN2 | B100: =IF(I102<1,I102*1000,I102) -> 2.21 | C100: =((I100*(I102+I101))/(I100+I102+I101)+B90)/B90*V_cs/Rsense -> 0.3151802955 | D100: =1+(C100-C99)/C99 -> 0.8998397436 | E100: =C100^2*Rsense -> 0.08508352688 | F100: =C100*Rsense -> 0.2699519231 | G100: R1 | H100: =(1-BIN4_Coeff)/BIN4_Coeff*R_2k -> 1.007518797 | I100: =(IF((10^(LOG(H100)-INT(LOG(H100)))*100)-VLOOKUP((10^(LOG(H100)-INT(LOG(H100)))*100),E96_s:E96_f,1)<VLOOKUP((10^(LOG(H100)-INT(LOG(H100)))*100),E96_s:E96_f,2)-(10^(LOG(H100)-INT(LOG(H100)))*100),VLOOKUP((10^(LOG(H100)-INT(LOG(H100)))*100),E96_s:E96_f,1),VLOOKUP((10^(LOG(H100)-INT(LOG(H100)))*100),E96_s:E96_f,2)))*10^INT(LOG(H100))/100 -> 1
A101: BIN3 | B101: =IF(I103<1,I103*1000,I103) -> 549 | C101: =((I100*(I103+I101))/(I100+I103+I101)+B90)/B90*V_cs/Rsense -> 0.2802241653 | D101: =1+(C101-C99)/C99 -> 0.800039992 | E101: =C101^2*Rsense -> 0.0672571617 | F101: =C101*Rsense -> 0.2400119976 | G101: R3 | H101: =(1-Bin_Coeff)/Bin_Coeff*R_2k*R_1k/(R_1k-(1-Bin_Coeff)/Bin_Coeff*R_2k) -> 0.1176470588 | I101: =(IF((10^(LOG(H101)-INT(LOG(H101)))*100)-VLOOKUP((10^(LOG(H101)-INT(LOG(H101)))*100),E96_s:E96_f,1)<VLOOKUP((10^(LOG(H101)-INT(LOG(H101)))*100),E96_s:E96_f,2)-(10^(LOG(H101)-INT(LOG(H101)))*100),VLOOKUP((10^(LOG(H101)-INT(LOG(H101)))*100),E96_s:E96_f,1),VLOOKUP((10^(LOG(H101)-INT(LOG(H101)))*100),E96_s:E96_f,2)))*10^INT(LOG(H101))/100 -> 0.118 | J101: =BIN_4/100*Bin_Coeff -> 0.665
A102: BIN4 | B102: Short | C102: =((I100*I101)/(I100+I101)+B90)/B90*V_cs/Rsense -> 0.2458313622 | D102: =1+(C102-C99)/C99 -> 0.7018485391 | E102: =C102^2*Rsense -> 0.05176091472 | F102: =C102*Rsense -> 0.2105545617 | G102: Rbin2 | H102: =(1-BIN2_Coeff)/BIN2_Coeff*R_2k*R_1k/(R_1k-(1-BIN2_Coeff)/BIN2_Coeff*R_2k)-R_3k -> 2.215333333 | I102: =(IF((10^(LOG(H102)-INT(LOG(H102)))*100)-VLOOKUP((10^(LOG(H102)-INT(LOG(H102)))*100),E96_s:E96_f,1)<VLOOKUP((10^(LOG(H102)-INT(LOG(H102)))*100),E96_s:E96_f,2)-(10^(LOG(H102)-INT(LOG(H102)))*100),VLOOKUP((10^(LOG(H102)-INT(LOG(H102)))*100),E96_s:E96_f,1),VLOOKUP((10^(LOG(H102)-INT(LOG(H102)))*100),E96_s:E96_f,2)))*10^INT(LOG(H102))/100 -> 2.21 | J102: =R_2k/(R_2k+R_1k)/(BIN_2/100) -> 0.7407407407
G103: Rbin3 | H103: =(1-J103)/J103*R_2k*R_1k/(R_1k-(1-J103)/J103*R_2k)-R_3k -> 0.5486666667 | I103: =(IF((10^(LOG(H103)-INT(LOG(H103)))*100)-VLOOKUP((10^(LOG(H103)-INT(LOG(H103)))*100),E96_s:E96_f,1)<VLOOKUP((10^(LOG(H103)-INT(LOG(H103)))*100),E96_s:E96_f,2)-(10^(LOG(H103)-INT(LOG(H103)))*100),VLOOKUP((10^(LOG(H103)-INT(LOG(H103)))*100),E96_s:E96_f,1),VLOOKUP((10^(LOG(H103)-INT(LOG(H103)))*100),E96_s:E96_f,2)))*10^INT(LOG(H103))/100 -> 0.549 | J103: =R_2k/(R_2k+R_1k)/(BIN_3/100) -> 0.8333333333
A104: *The results from this design tool serve as a guideline for components selection. However, these results are based on ideal conditions when the circuit is in steady state and in CCM mode. It may not reflect real circuit performance.

Sheet Efficiency
A1: INSTRUCTIONS: No values need to be entered here, all values are derived from the DESIGN tab
A3: If iteration error occurs, please set 'Reset' to 1 and then 0 | M3: Reset= | N3: 0 | Q3: If not in normal operation, the calculation result is not valid
B4: =Design!C30 -> 0.350262697 | D4: =IF($I$4="None",VOUT,VOUT-V_cs+VLOOKUP($I$4,Design!$A$99:$F$102,6)) -> 12.4 | H4: Binning | I4: NONE | K4: Max Duty | L4: =(1-Min_tOFF_typ/Tsw) -> 0.8
A5: T (°C) | B5: VIN | C5: VF | D5: Duty | E5: TON(ns) | F5: TOFF | G5: ΔIL | H5: PIQ | I5: Psw | J5: Pcond | K5: PDRIVER | L5: PIC | M5: PD1 | N5: PIND | O5: PSNUB | P5: PSENSE | Q5: TJD1 | R5: TJIC | S5: RDSon | T5: VOSAT | U5: VOUT | V5: PLOSS_tol | W5: POUT | X5: PIN | Y5: IL,AVG | Z5: Efficiency | AA5: Operating Condition
A6: 25 | B6: =Design!B4 -> 6 | C6: =IF(Reset=1,VF,FORECAST($B$4+Y6, OFFSET(Design!$C$16:$C$20,MATCH($B$4+Y6,Design!$B$16:$B$20,1)-1,0,2), OFFSET(Design!$B$16:$B$20,MATCH($B$4+Y6,Design!$B$16:$B$20,1)-1,0,2))+(Q6-$A$6)*Design!$B$21/1000) -> 0.4456878025 | D6: =IF(Reset=1,$D$4/(B6+$D$4),MIN(($D$4+C6+Y6*LO_DCR/1000*(1+(R6-25)*(Constants!$C$32/100)))/(B6-Y6*S6/1000+C6+$D$4),(Tsw-Min_tOFF_typ)/Tsw)) -> 0.6918948506 | E6: =IF(D6>=(Tsw-Min_tOFF_typ)/Tsw,Tsw-Min_tOFF_typ,IF(Tsw*Efficiency!D6>Constants!$C$19,Tsw*Efficiency!D6,Constants!$C$19)) -> 345.9474253 | F6: =IF(E6=Constants!$C$19,Tsw-Constants!$C$19,IF(Tsw*(1-Efficiency!D6)>Min_tOFF_typ,Tsw*(1-Efficiency!D6),Min_tOFF_typ)) -> 154.0525747 | G6: =IF(Reset=1,(B6)/(L_buckboost*micro)*D6*Tsw*nano,(B6-($B$4+Y6)*(S6/1000+LO_DCR/1000*(1+(R6-A6)*(Constants!$C$32/100))))/(L_buckboost*micro)*D6*Tsw*nano) -> 0.416580786 | H6: =(B6+$D$4)*Iq*micro -> 9.2e-05 | I6: =(B6+$D$4)*Y6*((B6+$D$4)/(Slew_rise*10^9)*fsw*10^6/2+(B6+$D$4)/(Slew_fall*10^9)*fsw*10^6/2) -> 0.5773269561 | J6: =D6*(($B$4/(1-D6))^2+G6^2/12)*S6*10^-3 -> 0.1720936298 | K6: =Qg*10^-9*(B6+$D$4)*fsw*10^6 -> 0.184 | L6: =SUM(H6:K6) -> 0.9335125859 | M6: =($B$4+Y6)*C6*(1-D6) -> 0.2042054324 | N6: =(($B$4+Y6)^2+G6^2/12)*(LO_DCR/1000+LO_DCR/1000*(R6-25)*(Constants!$C$32/100)) -> 0.08584086412 | O6: =0.5*C_SNUB*10^-12*(B6+$D$4)^2*fsw*10^6 -> 0.1591232 | P6: =IF($I$4="None",V_cs^2/RFB_1,VLOOKUP($I$4,Design!$A$99:$F$102,5)) -> 0.0700525394 | Q6: =$A6+M6*RthJA -> 36.23129878 | R6: =MIN(L6*RthJA_IC+$A6,190) -> 67.00806636 | S6: =IF(Reset=1,Rdson,Rdson+Rdson*TCR_RdsON/100*(R6-25)) -> 190.3277437 | T6: =(Max_Duty_Dropout*(B6+C6-($B$4+Y6)*S6/1000)-(C6+($B$4+Y6)*LO_DCR/1000))/(1-Max_Duty_Dropout) -> 22.17605981 | U6: =IF(Reset=1,VOUT,IF(T6>VOUT,VOUT,T6)) -> 12.4 | V6: =SUM(L6:P6) -> 1.452734622 | W6: =U6*$B$4 -> 4.343257443 | X6: =V6+W6 -> 5.795992065 | Y6: =IF(Reset=1,W6/B6/0.8,$B$4/(1-D6)) -> 1.136828442 | Z6: =W6/(W6+V6) -> 0.7493553122 | AA6: =IF(R6>=TSD,"TSD",IF(OR(E6=Constants!$C$19,Efficiency!F6=Min_tOFF_typ),IF(E6=Constants!$C$19,"Pulse Skip","Dropout"),"Normal")) -> Normal
A7: =25 -> 25 | B7: =($B$25-$B$6)/19+B6 -> 6.631578947 | C7: =IF(Reset=1,VF,FORECAST($B$4+Y7, OFFSET(Design!$C$16:$C$20,MATCH($B$4+Y7,Design!$B$16:$B$20,1)-1,0,2), OFFSET(Design!$B$16:$B$20,MATCH($B$4+Y7,Design!$B$16:$B$20,1)-1,0,2))+(Q7-25)*Design!$B$21/1000) -> 0.4419571455 | D7: =IF(Reset=1,$D$4/(B7+$D$4),MIN(($D$4+C7+Y7*LO_DCR/1000*(1+(R7-25)*(Constants!$C$32/100)))/(B7-Y7*S7/1000+C7+$D$4),(Tsw-Min_tOFF_typ)/Tsw)) -> 0.6684000884 | E7: =IF(D7>=(Tsw-Min_tOFF_typ)/Tsw,Tsw-Min_tOFF_typ,IF(Tsw*Efficiency!D7>Constants!$C$19,Tsw*Efficiency!D7,Constants!$C$19)) -> 334.2000442 | F7: =IF(E7=Constants!$C$19,Tsw-Constants!$C$19,IF(Tsw*(1-Efficiency!D7)>Min_tOFF_typ,Tsw*(1-Efficiency!D7),Min_tOFF_typ)) -> 165.7999558 | G7: =IF(Reset=1,(B7)/(L_buckboost*micro)*D7*Tsw*nano,(B7-($B$4+Y7)*(S7/1000+LO_DCR/1000*(1+(R7-A7)*(Constants!$C$32/100))))/(L_buckboost*micro)*D7*Tsw*nano) -> 0.448782723 | H7: 9.515789474e-05 | I7: 0.573879065 | J7: 0.1432225581 | K7: 0.1903157895 | L7: 0.9075125705 | M7: 0.2061331334 | N7: =(($B$4+Y7)^2+G7^2/12)*(LO_DCR/1000+LO_DCR/1000*(R7-25)*(Constants!$C$32/100)) -> 0.07663834144 | O7: 0.1702344687 | P7: =IF($I$4="None",V_cs^2/RFB_1,VLOOKUP($I$4,Design!$A$99:$F$102,5)) -> 0.0700525394 | Q7: 36.33732234 | R7: 65.83806567 | S7: 189.204543 | T7: =(Max_Duty_Dropout*(B7+C7-$B$4*S7/1000)-(C7+$B$4*LO_DCR/1000))/(1-Max_Duty_Dropout) -> 25.76130499 | U7: 12.4 | V7: 1.430571053 | W7: 4.343257443 | X7: 5.773828497 | Y7: 1.056281033 | Z7: 0.752231807 | AA7: =IF(R7>=TSD,"TSD",IF(OR(E7=Constants!$C$19,Efficiency!F7=Min_tOFF_typ),IF(E7=Constants!$C$19,"Pulse Skip","Dropout"),"Normal")) -> Normal
A8: =25 -> 25 | B8: =($B$25-$B$6)/19+B7 -> 7.263157895 | C8: =IF(Reset=1,VF,FORECAST($B$4+Y8, OFFSET(Design!$C$16:$C$20,MATCH($B$4+Y8,Design!$B$16:$B$20,1)-1,0,2), OFFSET(Design!$B$16:$B$20,MATCH($B$4+Y8,Design!$B$16:$B$20,1)-1,0,2))+(Q8-25)*Design!$B$21/1000) -> 0.4389171145 | D8: =IF(Reset=1,$D$4/(B8+$D$4),MIN(($D$4+C8+Y8*LO_DCR/1000*(1+(R8-25)*(Constants!$C$32/100)))/(B8-Y8*S8/1000+C8+$D$4),(Tsw-Min_tOFF_typ)/Tsw)) -> 0.6465884767 | E8: =IF(D8>=(Tsw-Min_tOFF_typ)/Tsw,Tsw-Min_tOFF_typ,IF(Tsw*Efficiency!D8>Constants!$C$19,Tsw*Efficiency!D8,Constants!$C$19)) -> 323.2942383 | F8: =IF(E8=Constants!$C$19,Tsw-Constants!$C$19,IF(Tsw*(1-Efficiency!D8)>Min_tOFF_typ,Tsw*(1-Efficiency!D8),Min_tOFF_typ)) -> 176.7057617 | G8: =IF(Reset=1,(B8)/(L_buckboost*micro)*D8*Tsw*nano,(B8-($B$4+Y8)*(S8/1000+LO_DCR/1000*(1+(R8-A8)*(Constants!$C$32/100))))/(L_buckboost*micro)*D8*Tsw*nano) -> 0.4786650684 | H8: 9.831578947e-05 | I8: 0.5747923424 | J8: 0.1221149153 | K8: 0.1966315789 | L8: 0.8936371525 | M8: 0.2080684695 | N8: =(($B$4+Y8)^2+G8^2/12)*(LO_DCR/1000+LO_DCR/1000*(R8-25)*(Constants!$C$32/100)) -> 0.06969826942 | O8: 0.1817206958 | P8: =IF($I$4="None",V_cs^2/RFB_1,VLOOKUP($I$4,Design!$A$99:$F$102,5)) -> 0.0700525394 | Q8: 36.44376583 | R8: 65.21367186 | S8: 188.605125 | T8: 28.29150063 | U8: 12.4 | V8: 1.423177127 | W8: 4.343257443 | X8: 5.76643457 | Y8: 0.9910901991 | Z8: 0.7531963452 | AA8: =IF(R8>=TSD,"TSD",IF(OR(E8=Constants!$C$19,Efficiency!F8=Min_tOFF_typ),IF(E8=Constants!$C$19,"Pulse Skip","Dropout"),"Normal")) -> Normal
A9: =25 -> 25 | B9: 7.894736842 | C9: =IF(Reset=1,VF,FORECAST($B$4+Y9, OFFSET(Design!$C$16:$C$20,MATCH($B$4+Y9,Design!$B$16:$B$20,1)-1,0,2), OFFSET(Design!$B$16:$B$20,MATCH($B$4+Y9,Design!$B$16:$B$20,1)-1,0,2))+(Q9-25)*Design!$B$21/1000) -> 0.436384981 | D9: =IF(Reset=1,$D$4/(B9+$D$4),MIN(($D$4+C9+Y9*LO_DCR/1000*(1+(R9-25)*(Constants!$C$32/100)))/(B9-Y9*S9/1000+C9+$D$4),(Tsw-Min_tOFF_typ)/Tsw)) -> 0.6262482538 | E9: =IF(D9>=(Tsw-Min_tOFF_typ)/Tsw,Tsw-Min_tOFF_typ,IF(Tsw*Efficiency!D9>Constants!$C$19,Tsw*Efficiency!D9,Constants!$C$19)) -> 313.1241269 | F9: =IF(E9=Constants!$C$19,Tsw-Constants!$C$19,IF(Tsw*(1-Efficiency!D9)>Min_tOFF_typ,Tsw*(1-Efficiency!D9),Min_tOFF_typ)) -> 186.8758731 | G9: =IF(Reset=1,(B9)/(L_buckboost*micro)*D9*Tsw*nano,(B9-($B$4+Y9)*(S9/1000+LO_DCR/1000*(1+(R9-A9)*(Constants!$C$32/100))))/(L_buckboost*micro)*D9*Tsw*nano) -> 0.5065229964 | H9: 0.0001014736842 | I9: 0.5789869361 | J9: 0.1061261127 | K9: 0.2029473684 | L9: 0.8881618909 | M9: 0.2099771032 | N9: =(($B$4+Y9)^2+G9^2/12)*(LO_DCR/1000+LO_DCR/1000*(R9-25)*(Constants!$C$32/100)) -> 0.06429725486 | O9: 0.1935818814 | P9: =IF($I$4="None",V_cs^2/RFB_1,VLOOKUP($I$4,Design!$A$99:$F$102,5)) -> 0.0700525394 | Q9: 36.54874068 | R9: 64.96728509 | S9: 188.3685937 | T9: 30.82067994 | U9: 12.4 | V9: 1.42607067 | W9: 4.343257443 | X9: 5.769328113 | Y9: 0.9371533394 | Z9: 0.7528185879 | AA9: =IF(R9>=TSD,"TSD",IF(OR(E9=Constants!$C$19,Efficiency!F9=Min_tOFF_typ),IF(E9=Constants!$C$19,"Pulse Skip","Dropout"),"Normal")) -> Normal
A10: =25 -> 25 | B10: 8.526315789 | C10: =IF(Reset=1,VF,FORECAST($B$4+Y10, OFFSET(Design!$C$16:$C$20,MATCH($B$4+Y10,Design!$B$16:$B$20,1)-1,0,2), OFFSET(Design!$B$16:$B$20,MATCH($B$4+Y10,Design!$B$16:$B$20,1)-1,0,2))+(Q10-25)*Design!$B$21/1000) -> 0.4342388049 | D10: =IF(Reset=1,$D$4/(B10+$D$4),MIN(($D$4+C10+Y10*LO_DCR/1000*(1+(R10-25)*(Constants!$C$32/100)))/(B10-Y10*S10/1000+C10+$D$4),(Tsw-Min_tOFF_typ)/Tsw)) -> 0.6072129909 | E10: =IF(D10>=(Tsw-Min_tOFF_typ)/Tsw,Tsw-Min_tOFF_typ,IF(Tsw*Efficiency!D10>Constants!$C$19,Tsw*Efficiency!D10,Constants!$C$19)) -> 303.6064954 | F10: =IF(E10=Constants!$C$19,Tsw-Constants!$C$19,IF(Tsw*(1-Efficiency!D10)>Min_tOFF_typ,Tsw*(1-Efficiency!D10),Min_tOFF_typ)) -> 196.3935046 | G10: =IF(Reset=1,(B10)/(L_buckboost*micro)*D10*Tsw*nano,(B10-($B$4+Y10)*(S10/1000+LO_DCR/1000*(1+(R10-A10)*(Constants!$C$32/100))))/(L_buckboost*micro)*D10*Tsw*nano) -> 0.5325875678 | H10: 0.0001046315789 | I10: 0.5857517305 | J10: 0.0936714312 | K10: 0.2092631579 | L10: 0.8887909512 | M10: 0.2118396379 | N10: =(($B$4+Y10)^2+G10^2/12)*(LO_DCR/1000+LO_DCR/1000*(R10-25)*(Constants!$C$32/100)) -> 0.05998978603 | O10: 0.2058180255 | P10: =IF($I$4="None",V_cs^2/RFB_1,VLOOKUP($I$4,Design!$A$99:$F$102,5)) -> 0.0700525394 | Q10: 36.65118009 | R10: 64.9955928 | S10: 188.3957691 | T10: 33.34910384 | U10: 12.4 | V10: 1.43649094 | W10: 4.343257443 | X10: 5.779748383 | Y10: 0.8917369691 | Z10: 0.7514613362 | AA10: =IF(R10>=TSD,"TSD",IF(OR(E10=Constants!$C$19,Efficiency!F10=Min_tOFF_typ),IF(E10=Constants!$C$19,"Pulse Skip","Dropout"),"Normal")) -> Normal
A11: =25 -> 25 | B11: 9.157894737 | C11: =IF(Reset=1,VF,FORECAST($B$4+Y11, OFFSET(Design!$C$16:$C$20,MATCH($B$4+Y11,Design!$B$16:$B$20,1)-1,0,2), OFFSET(Design!$B$16:$B$20,MATCH($B$4+Y11,Design!$B$16:$B$20,1)-1,0,2))+(Q11-25)*Design!$B$21/1000) -> 0.4323936433 | D11: =IF(Reset=1,$D$4/(B11+$D$4),MIN(($D$4+C11+Y11*LO_DCR/1000*(1+(R11-25)*(Constants!$C$32/100)))/(B11-Y11*S11/1000+C11+$D$4),(Tsw-Min_tOFF_typ)/Tsw)) -> 0.5893467911 | E11: =IF(D11>=(Tsw-Min_tOFF_typ)/Tsw,Tsw-Min_tOFF_typ,IF(Tsw*Efficiency!D11>Constants!$C$19,Tsw*Efficiency!D11,Constants!$C$19)) -> 294.6733955 | F11: =IF(E11=Constants!$C$19,Tsw-Constants!$C$19,IF(Tsw*(1-Efficiency!D11)>Min_tOFF_typ,Tsw*(1-Efficiency!D11),Min_tOFF_typ)) -> 205.3266045 | G11: =IF(Reset=1,(B11)/(L_buckboost*micro)*D11*Tsw*nano,(B11-($B$4+Y11)*(S11/1000+LO_DCR/1000*(1+(R11-A11)*(Constants!$C$32/100))))/(L_buckboost*micro)*D11*Tsw*nano) -> 0.5570468963 | H11: 0.0001077894737 | I11: 0.5945968713 | J11: 0.08374702648 | K11: 0.2155789474 | L11: 0.8940306346 | M11: 0.2136453522 | N11: =(($B$4+Y11)^2+G11^2/12)*(LO_DCR/1000+LO_DCR/1000*(R11-25)*(Constants!$C$32/100)) -> 0.05648644026 | O11: 0.218429128 | P11: =IF($I$4="None",V_cs^2/RFB_1,VLOOKUP($I$4,Design!$A$99:$F$102,5)) -> 0.0700525394 | Q11: 36.75049437 | R11: 65.23137856 | S11: 188.6221234 | T11: 35.87694765 | U11: 12.4 | V11: 1.452644094 | W11: 4.343257443 | X11: 5.795901538 | Y11: 0.8529403629 | Z11: 0.7493670165 | AA11: =IF(R11>=TSD,"TSD",IF(OR(E11=Constants!$C$19,Efficiency!F11=Min_tOFF_typ),IF(E11=Constants!$C$19,"Pulse Skip","Dropout"),"Normal")) -> Normal
A12: =25 -> 25 | B12: 9.789473684 | C12: =IF(Reset=1,VF,FORECAST($B$4+Y12, OFFSET(Design!$C$16:$C$20,MATCH($B$4+Y12,Design!$B$16:$B$20,1)-1,0,2), OFFSET(Design!$B$16:$B$20,MATCH($B$4+Y12,Design!$B$16:$B$20,1)-1,0,2))+(Q12-25)*Design!$B$21/1000) -> 0.430788283 | D12: =IF(Reset=1,$D$4/(B12+$D$4),MIN(($D$4+C12+Y12*LO_DCR/1000*(1+(R12-25)*(Constants!$C$32/100)))/(B12-Y12*S12/1000+C12+$D$4),(Tsw-Min_tOFF_typ)/Tsw)) -> 0.5725357668 | E12: =IF(D12>=(Tsw-Min_tOFF_typ)/Tsw,Tsw-Min_tOFF_typ,IF(Tsw*Efficiency!D12>Constants!$C$19,Tsw*Efficiency!D12,Constants!$C$19)) -> 286.2678834 | F12: =IF(E12=Constants!$C$19,Tsw-Constants!$C$19,IF(Tsw*(1-Efficiency!D12)>Min_tOFF_typ,Tsw*(1-Efficiency!D12),Min_tOFF_typ)) -> 213.7321166 | G12: =IF(Reset=1,(B12)/(L_buckboost*micro)*D12*Tsw*nano,(B12-($B$4+Y12)*(S12/1000+LO_DCR/1000*(1+(R12-A12)*(Constants!$C$32/100))))/(L_buckboost*micro)*D12*Tsw*nano) -> 0.5800582811 | H12: 0.0001109473684 | I12: 0.6051727535 | J12: 0.0756884647 | K12: 0.2218947368 | L12: 0.9028669024 | M12: 0.2153887447 | N12: =(($B$4+Y12)^2+G12^2/12)*(LO_DCR/1000+LO_DCR/1000*(R12-25)*(Constants!$C$32/100)) -> 0.05359109606 | O12: 0.2314151889 | P12: =IF($I$4="None",V_cs^2/RFB_1,VLOOKUP($I$4,Design!$A$99:$F$102,5)) -> 0.0700525394 | Q12: 36.84638096 | R12: 65.62901061 | S12: 189.0038502 | T12: 38.40433398 | U12: 12.4 | V12: 1.473314471 | W12: 4.343257443 | X12: 5.816571915 | Y12: 0.8193965011 | Z12: 0.7467039877 | AA12: =IF(R12>=TSD,"TSD",IF(OR(E12=Constants!$C$19,Efficiency!F12=Min_tOFF_typ),IF(E12=Constants!$C$19,"Pulse Skip","Dropout"),"Normal")) -> Normal
A13: =25 -> 25 | B13: 10.42105263 | C13: =IF(Reset=1,VF,FORECAST($B$4+Y13, OFFSET(Design!$C$16:$C$20,MATCH($B$4+Y13,Design!$B$16:$B$20,1)-1,0,2), OFFSET(Design!$B$16:$B$20,MATCH($B$4+Y13,Design!$B$16:$B$20,1)-1,0,2))+(Q13-25)*Design!$B$21/1000) -> 0.4293773737 | D13: =IF(Reset=1,$D$4/(B13+$D$4),MIN(($D$4+C13+Y13*LO_DCR/1000*(1+(R13-25)*(Constants!$C$32/100)))/(B13-Y13*S13/1000+C13+$D$4),(Tsw-Min_tOFF_typ)/Tsw)) -> 0.5566826995 | E13: =IF(D13>=(Tsw-Min_tOFF_typ)/Tsw,Tsw-Min_tOFF_typ,IF(Tsw*Efficiency!D13>Constants!$C$19,Tsw*Efficiency!D13,Constants!$C$19)) -> 278.3413497 | F13: =IF(E13=Constants!$C$19,Tsw-Constants!$C$19,IF(Tsw*(1-Efficiency!D13)>Min_tOFF_typ,Tsw*(1-Efficiency!D13),Min_tOFF_typ)) -> 221.6586503 | G13: =IF(Reset=1,(B13)/(L_buckboost*micro)*D13*Tsw*nano,(B13-($B$4+Y13)*(S13/1000+LO_DCR/1000*(1+(R13-A13)*(Constants!$C$32/100))))/(L_buckboost*micro)*D13*Tsw*nano) -> 0.6017557737 | H13: 0.0001141052632 | I13: 0.6172225885 | J13: 0.06903996181 | K13: 0.2282105263 | L13: 0.9145871819 | M13: 0.2170675278 | N13: =(($B$4+Y13)^2+G13^2/12)*(LO_DCR/1000+LO_DCR/1000*(R13-25)*(Constants!$C$32/100)) -> 0.05116621774 | O13: 0.2447762083 | P13: =IF($I$4="None",V_cs^2/RFB_1,VLOOKUP($I$4,Design!$A$99:$F$102,5)) -> 0.0700525394 | Q13: 36.93871403 | R13: 66.15642319 | S13: 189.5101663 | T13: 40.93135131 | U13: 12.4 | V13: 1.497649675 | W13: 4.343257443 | X13: 5.840907118 | Y13: 0.790094807 | Z13: 0.7435929651 | AA13: =IF(R13>=TSD,"TSD",IF(OR(E13=Constants!$C$19,Efficiency!F13=Min_tOFF_typ),IF(E13=Constants!$C$19,"Pulse Skip","Dropout"),"Normal")) -> Normal
A14: =25 -> 25 | B14: 11.05263158 | C14: =IF(Reset=1,VF,FORECAST($B$4+Y14, OFFSET(Design!$C$16:$C$20,MATCH($B$4+Y14,Design!$B$16:$B$20,1)-1,0,2), OFFSET(Design!$B$16:$B$20,MATCH($B$4+Y14,Design!$B$16:$B$20,1)-1,0,2))+(Q14-25)*Design!$B$21/1000) -> 0.4281265331 | D14: =IF(Reset=1,$D$4/(B14+$D$4),MIN(($D$4+C14+Y14*LO_DCR/1000*(1+(R14-25)*(Constants!$C$32/100)))/(B14-Y14*S14/1000+C14+$D$4),(Tsw-Min_tOFF_typ)/Tsw)) -> 0.541703464 | E14: =IF(D14>=(Tsw-Min_tOFF_typ)/Tsw,Tsw-Min_tOFF_typ,IF(Tsw*Efficiency!D14>Constants!$C$19,Tsw*Efficiency!D14,Constants!$C$19)) -> 270.851732 | F14: =IF(E14=Constants!$C$19,Tsw-Constants!$C$19,IF(Tsw*(1-Efficiency!D14)>Min_tOFF_typ,Tsw*(1-Efficiency!D14),Min_tOFF_typ)) -> 229.148268 | G14: =IF(Reset=1,(B14)/(L_buckboost*micro)*D14*Tsw*nano,(B14-($B$4+Y14)*(S14/1000+LO_DCR/1000*(1+(R14-A14)*(Constants!$C$32/100))))/(L_buckboost*micro)*D14*Tsw*nano) -> 0.6222552222 | H14: 0.0001172631579 | I14: 0.6305532002 | J14: 0.06347942303 | K14: 0.2345263158 | L14: 0.9286762022 | M14: 0.2186814152 | N14: =(($B$4+Y14)^2+G14^2/12)*(LO_DCR/1000+LO_DCR/1000*(R14-25)*(Constants!$C$32/100)) -> 0.04911256407 | O14: 0.2585121861 | P14: =IF($I$4="None",V_cs^2/RFB_1,VLOOKUP($I$4,Design!$A$99:$F$102,5)) -> 0.0700525394 | Q14: 37.02747783 | R14: 66.7904291 | S14: 190.1188119 | T14: 43.45806519 | U14: 12.4 | V14: 1.525034907 | W14: 4.343257443 | X14: 5.86829235 | Y14: 0.7642708803 | Z14: 0.7401228814 | AA14: =IF(R14>=TSD,"TSD",IF(OR(E14=Constants!$C$19,Efficiency!F14=Min_tOFF_typ),IF(E14=Constants!$C$19,"Pulse Skip","Dropout"),"Normal")) -> Normal
A15: =25 -> 25 | B15: 11.68421053 | C15: =IF(Reset=1,VF,FORECAST($B$4+Y15, OFFSET(Design!$C$16:$C$20,MATCH($B$4+Y15,Design!$B$16:$B$20,1)-1,0,2), OFFSET(Design!$B$16:$B$20,MATCH($B$4+Y15,Design!$B$16:$B$20,1)-1,0,2))+(Q15-25)*Design!$B$21/1000) -> 0.4270091784 | D15: =IF(Reset=1,$D$4/(B15+$D$4),MIN(($D$4+C15+Y15*LO_DCR/1000*(1+(R15-25)*(Constants!$C$32/100)))/(B15-Y15*S15/1000+C15+$D$4),(Tsw-Min_tOFF_typ)/Tsw)) -> 0.5275245043 | E15: =IF(D15>=(Tsw-Min_tOFF_typ)/Tsw,Tsw-Min_tOFF_typ,IF(Tsw*Efficiency!D15>Constants!$C$19,Tsw*Efficiency!D15,Constants!$C$19)) -> 263.7622522 | F15: =IF(E15=Constants!$C$19,Tsw-Constants!$C$19,IF(Tsw*(1-Efficiency!D15)>Min_tOFF_typ,Tsw*(1-Efficiency!D15),Min_tOFF_typ)) -> 236.2377478 | G15: =IF(Reset=1,(B15)/(L_buckboost*micro)*D15*Tsw*nano,(B15-($B$4+Y15)*(S15/1000+LO_DCR/1000*(1+(R15-A15)*(Constants!$C$32/100))))/(L_buckboost*micro)*D15*Tsw*nano) -> 0.641657818 | H15: 0.0001204210526 | I15: 0.6450162958 | J15: 0.05877342281 | K15: 0.2408421053 | L15: 0.9447522449 | M15: 0.2202313666 | N15: =(($B$4+Y15)^2+G15^2/12)*(LO_DCR/1000+LO_DCR/1000*(R15-25)*(Constants!$C$32/100)) -> 0.04735677685 | O15: 0.2726231224 | P15: =IF($I$4="None",V_cs^2/RFB_1,VLOOKUP($I$4,Design!$A$99:$F$102,5)) -> 0.0700525394 | Q15: 37.11272516 | R15: 67.51385102 | S15: 190.813297 | T15: 45.98452533 | U15: 12.4 | V15: 1.55501605 | W15: 4.343257443 | X15: 5.898273493 | Y15: 0.7413351597 | Z15: 0.7363608093 | AA15: =IF(R15>=TSD,"TSD",IF(OR(E15=Constants!$C$19,Efficiency!F15=Min_tOFF_typ),IF(E15=Constants!$C$19,"Pulse Skip","Dropout"),"Normal")) -> Normal
A16: =25 -> 25 | B16: 12.31578947 | C16: =IF(Reset=1,VF,FORECAST($B$4+Y16, OFFSET(Design!$C$16:$C$20,MATCH($B$4+Y16,Design!$B$16:$B$20,1)-1,0,2), OFFSET(Design!$B$16:$B$20,MATCH($B$4+Y16,Design!$B$16:$B$20,1)-1,0,2))+(Q16-25)*Design!$B$21/1000) -> 0.4260044062 | D16: =IF(Reset=1,$D$4/(B16+$D$4),MIN(($D$4+C16+Y16*LO_DCR/1000*(1+(R16-25)*(Constants!$C$32/100)))/(B16-Y16*S16/1000+C16+$D$4),(Tsw-Min_tOFF_typ)/Tsw)) -> 0.5140809753 | E16: =IF(D16>=(Tsw-Min_tOFF_typ)/Tsw,Tsw-Min_tOFF_typ,IF(Tsw*Efficiency!D16>Constants!$C$19,Tsw*Efficiency!D16,Constants!$C$19)) -> 257.0404877 | F16: =IF(E16=Constants!$C$19,Tsw-Constants!$C$19,IF(Tsw*(1-Efficiency!D16)>Min_tOFF_typ,Tsw*(1-Efficiency!D16),Min_tOFF_typ)) -> 242.9595123 | G16: =IF(Reset=1,(B16)/(L_buckboost*micro)*D16*Tsw*nano,(B16-($B$4+Y16)*(S16/1000+LO_DCR/1000*(1+(R16-A16)*(Constants!$C$32/100))))/(L_buckboost*micro)*D16*Tsw*nano) -> 0.6600526983 | H16: 0.0001235789474 | I16: 0.6604960401 | J16: 0.05474909384 | K16: 0.2471578947 | L16: 0.9625266076 | M16: 0.2217191075 | N16: =(($B$4+Y16)^2+G16^2/12)*(LO_DCR/1000+LO_DCR/1000*(R16-25)*(Constants!$C$32/100)) -> 0.04584349567 | O16: 0.2871090172 | P16: =IF($I$4="None",V_cs^2/RFB_1,VLOOKUP($I$4,Design!$A$99:$F$102,5)) -> 0.0700525394 | Q16: 37.19455091 | R16: 68.31369734 | S16: 191.5811494 | T16: 48.51077009 | U16: 12.4 | V16: 1.587250767 | W16: 4.343257443 | X16: 5.93050821 | Y16: 0.7208252389 | Z16: 0.7323583897 | AA16: =IF(R16>=TSD,"TSD",IF(OR(E16=Constants!$C$19,Efficiency!F16=Min_tOFF_typ),IF(E16=Constants!$C$19,"Pulse Skip","Dropout"),"Normal")) -> Normal
A17: =25 -> 25 | B17: 12.94736842 | C17: =IF(Reset=1,VF,FORECAST($B$4+Y17, OFFSET(Design!$C$16:$C$20,MATCH($B$4+Y17,Design!$B$16:$B$20,1)-1,0,2), OFFSET(Design!$B$16:$B$20,MATCH($B$4+Y17,Design!$B$16:$B$20,1)-1,0,2))+(Q17-25)*Design!$B$21/1000) -> 0.4250955357 | D17: =IF(Reset=1,$D$4/(B17+$D$4),MIN(($D$4+C17+Y17*LO_DCR/1000*(1+(R17-25)*(Constants!$C$32/100)))/(B17-Y17*S17/1000+C17+$D$4),(Tsw-Min_tOFF_typ)/Tsw)) -> 0.5013153272 | E17: =IF(D17>=(Tsw-Min_tOFF_typ)/Tsw,Tsw-Min_tOFF_typ,IF(Tsw*Efficiency!D17>Constants!$C$19,Tsw*Efficiency!D17,Constants!$C$19)) -> 250.6576636 | F17: =IF(E17=Constants!$C$19,Tsw-Constants!$C$19,IF(Tsw*(1-Efficiency!D17)>Min_tOFF_typ,Tsw*(1-Efficiency!D17),Min_tOFF_typ)) -> 249.3423364 | G17: =IF(Reset=1,(B17)/(L_buckboost*micro)*D17*Tsw*nano,(B17-($B$4+Y17)*(S17/1000+LO_DCR/1000*(1+(R17-A17)*(Constants!$C$32/100))))/(L_buckboost*micro)*D17*Tsw*nano) -> 0.677518921 | H17: 0.0001267368421 | I17: 0.6769005716 | J17: 0.05127598423 | K17: 0.2534736842 | L17: 0.9817769769 | M17: 0.2231468174 | N17: =(($B$4+Y17)^2+G17^2/12)*(LO_DCR/1000+LO_DCR/1000*(R17-25)*(Constants!$C$32/100)) -> 0.04453018421 | O17: 0.3019698704 | P17: =IF($I$4="None",V_cs^2/RFB_1,VLOOKUP($I$4,Design!$A$99:$F$102,5)) -> 0.0700525394 | Q17: 37.27307496 | R17: 69.17996396 | S17: 192.4127654 | T17: 51.03682962 | U17: 12.4 | V17: 1.621476388 | W17: 4.343257443 | X17: 5.964733831 | Y17: 0.702373095 | Z17: 0.7281561199 | AA17: =IF(R17>=TSD,"TSD",IF(OR(E17=Constants!$C$19,Efficiency!F17=Min_tOFF_typ),IF(E17=Constants!$C$19,"Pulse Skip","Dropout"),"Normal")) -> Normal
A18: =25 -> 25 | B18: 13.57894737 | C18: =IF(Reset=1,VF,FORECAST($B$4+Y18, OFFSET(Design!$C$16:$C$20,MATCH($B$4+Y18,Design!$B$16:$B$20,1)-1,0,2), OFFSET(Design!$B$16:$B$20,MATCH($B$4+Y18,Design!$B$16:$B$20,1)-1,0,2))+(Q18-25)*Design!$B$21/1000) -> 0.4242690814 | D18: =IF(Reset=1,$D$4/(B18+$D$4),MIN(($D$4+C18+Y18*LO_DCR/1000*(1+(R18-25)*(Constants!$C$32/100)))/(B18-Y18*S18/1000+C18+$D$4),(Tsw-Min_tOFF_typ)/Tsw)) -> 0.4891761994 | E18: =IF(D18>=(Tsw-Min_tOFF_typ)/Tsw,Tsw-Min_tOFF_typ,IF(Tsw*Efficiency!D18>Constants!$C$19,Tsw*Efficiency!D18,Constants!$C$19)) -> 244.5880997 | F18: =IF(E18=Constants!$C$19,Tsw-Constants!$C$19,IF(Tsw*(1-Efficiency!D18)>Min_tOFF_typ,Tsw*(1-Efficiency!D18),Min_tOFF_typ)) -> 255.4119003 | G18: =IF(Reset=1,(B18)/(L_buckboost*micro)*D18*Tsw*nano,(B18-($B$4+Y18)*(S18/1000+LO_DCR/1000*(1+(R18-A18)*(Constants!$C$32/100))))/(L_buckboost*micro)*D18*Tsw*nano) -> 0.6941270051 | H18: 0.0001298947368 | I18: 0.6941560652 | J18: 0.0482540094 | K18: 0.2597894737 | L18: 1.002329443 | M18: 0.2245169268 | N18: =(($B$4+Y18)^2+G18^2/12)*(LO_DCR/1000+LO_DCR/1000*(R18-25)*(Constants!$C$32/100)) -> 0.04338364004 | O18: 0.317205682 | P18: =IF($I$4="None",V_cs^2/RFB_1,VLOOKUP($I$4,Design!$A$99:$F$102,5)) -> 0.0700525394 | Q18: 37.34843098 | R18: 70.10482494 | S18: 193.3006319 | T18: 53.56272791 | U18: 12.4 | V18: 1.657488231 | W18: 4.343257443 | X18: 6.000745674 | Y18: 0.6856820231 | Z18: 0.723786289 | AA18: =IF(R18>=TSD,"TSD",IF(OR(E18=Constants!$C$19,Efficiency!F18=Min_tOFF_typ),IF(E18=Constants!$C$19,"Pulse Skip","Dropout"),"Normal")) -> Normal
A19: =25 -> 25 | B19: 14.21052632 | C19: =IF(Reset=1,VF,FORECAST($B$4+Y19, OFFSET(Design!$C$16:$C$20,MATCH($B$4+Y19,Design!$B$16:$B$20,1)-1,0,2), OFFSET(Design!$B$16:$B$20,MATCH($B$4+Y19,Design!$B$16:$B$20,1)-1,0,2))+(Q19-25)*Design!$B$21/1000) -> 0.423514015 | D19: =IF(Reset=1,$D$4/(B19+$D$4),MIN(($D$4+C19+Y19*LO_DCR/1000*(1+(R19-25)*(Constants!$C$32/100)))/(B19-Y19*S19/1000+C19+$D$4),(Tsw-Min_tOFF_typ)/Tsw)) -> 0.4776175358 | E19: =IF(D19>=(Tsw-Min_tOFF_typ)/Tsw,Tsw-Min_tOFF_typ,IF(Tsw*Efficiency!D19>Constants!$C$19,Tsw*Efficiency!D19,Constants!$C$19)) -> 238.8087679 | F19: =IF(E19=Constants!$C$19,Tsw-Constants!$C$19,IF(Tsw*(1-Efficiency!D19)>Min_tOFF_typ,Tsw*(1-Efficiency!D19),Min_tOFF_typ)) -> 261.1912321 | G19: =IF(Reset=1,(B19)/(L_buckboost*micro)*D19*Tsw*nano,(B19-($B$4+Y19)*(S19/1000+LO_DCR/1000*(1+(R19-A19)*(Constants!$C$32/100))))/(L_buckboost*micro)*D19*Tsw*nano) -> 0.7099401589 | H19: 0.0001330526316 | I19: 0.7122024862 | J19: 0.04560525012 | K19: 0.2661052632 | L19: 1.024046052 | M19: 0.2258319824 | N19: =(($B$4+Y19)^2+G19^2/12)*(LO_DCR/1000+LO_DCR/1000*(R19-25)*(Constants!$C$32/100)) -> 0.04237758231 | O19: 0.3328164521 | P19: =IF($I$4="None",V_cs^2/RFB_1,VLOOKUP($I$4,Design!$A$99:$F$102,5)) -> 0.0700525394 | Q19: 37.42075903 | R19: 71.08207235 | S19: 194.2387895 | T19: 56.08848436 | U19: 12.4 | V19: 1.695124608 | W19: 4.343257443 | X19: 6.038382051 | Y19: 0.6705100593 | Z19: 0.719275032 | AA19: =IF(R19>=TSD,"TSD",IF(OR(E19=Constants!$C$19,Efficiency!F19=Min_tOFF_typ),IF(E19=Constants!$C$19,"Pulse Skip","Dropout"),"Normal")) -> Normal
A20: =25 -> 25 | B20: 14.84210526 | C20: =IF(Reset=1,VF,FORECAST($B$4+Y20, OFFSET(Design!$C$16:$C$20,MATCH($B$4+Y20,Design!$B$16:$B$20,1)-1,0,2), OFFSET(Design!$B$16:$B$20,MATCH($B$4+Y20,Design!$B$16:$B$20,1)-1,0,2))+(Q20-25)*Design!$B$21/1000) -> 0.4228212237 | D20: =IF(Reset=1,$D$4/(B20+$D$4),MIN(($D$4+C20+Y20*LO_DCR/1000*(1+(R20-25)*(Constants!$C$32/100)))/(B20-Y20*S20/1000+C20+$D$4),(Tsw-Min_tOFF_typ)/Tsw)) -> 0.4665978662 | E20: =IF(D20>=(Tsw-Min_tOFF_typ)/Tsw,Tsw-Min_tOFF_typ,IF(Tsw*Efficiency!D20>Constants!$C$19,Tsw*Efficiency!D20,Constants!$C$19)) -> 233.2989331 | F20: =IF(E20=Constants!$C$19,Tsw-Constants!$C$19,IF(Tsw*(1-Efficiency!D20)>Min_tOFF_typ,Tsw*(1-Efficiency!D20),Min_tOFF_typ)) -> 266.7010669 | G20: =IF(Reset=1,(B20)/(L_buckboost*micro)*D20*Tsw*nano,(B20-($B$4+Y20)*(S20/1000+LO_DCR/1000*(1+(R20-A20)*(Constants!$C$32/100))))/(L_buckboost*micro)*D20*Tsw*nano) -> 0.7250152767 | H20: 0.0001362105263 | I20: 0.7309904972 | J20: 0.04326824515 | K20: 0.2724210526 | L20: 1.046816006 | M20: 0.2270945593 | N20: =(($B$4+Y20)^2+G20^2/12)*(LO_DCR/1000+LO_DCR/1000*(R20-25)*(Constants!$C$32/100)) -> 0.04149094856 | O20: 0.3488021806 | P20: =IF($I$4="None",V_cs^2/RFB_1,VLOOKUP($I$4,Design!$A$99:$F$102,5)) -> 0.0700525394 | Q20: 37.49020076 | R20: 72.10672025 | S20: 195.2224514 | T20: 58.61411478 | U20: 12.4 | V20: 1.734256233 | W20: 4.343257443 | X20: 6.077513676 | Y20: 0.6566578475 | Z20: 0.7146437959 | AA20: =IF(R20>=TSD,"TSD",IF(OR(E20=Constants!$C$19,Efficiency!F20=Min_tOFF_typ),IF(E20=Constants!$C$19,"Pulse Skip","Dropout"),"Normal")) -> Normal
A21: =25 -> 25 | B21: 15.47368421 | C21: =IF(Reset=1,VF,FORECAST($B$4+Y21, OFFSET(Design!$C$16:$C$20,MATCH($B$4+Y21,Design!$B$16:$B$20,1)-1,0,2), OFFSET(Design!$B$16:$B$20,MATCH($B$4+Y21,Design!$B$16:$B$20,1)-1,0,2))+(Q21-25)*Design!$B$21/1000) -> 0.4220425961 | D21: =IF(Reset=1,$D$4/(B21+$D$4),MIN(($D$4+C21+Y21*LO_DCR/1000*(1+(R21-25)*(Constants!$C$32/100)))/(B21-Y21*S21/1000+C21+$D$4),(Tsw-Min_tOFF_typ)/Tsw)) -> 0.456076982 | E21: =IF(D21>=(Tsw-Min_tOFF_typ)/Tsw,Tsw-Min_tOFF_typ,IF(Tsw*Efficiency!D21>Constants!$C$19,Tsw*Efficiency!D21,Constants!$C$19)) -> 228.038491 | F21: =IF(E21=Constants!$C$19,Tsw-Constants!$C$19,IF(Tsw*(1-Efficiency!D21)>Min_tOFF_typ,Tsw*(1-Efficiency!D21),Min_tOFF_typ)) -> 271.961509 | G21: =IF(Reset=1,(B21)/(L_buckboost*micro)*D21*Tsw*nano,(B21-($B$4+Y21)*(S21/1000+LO_DCR/1000*(1+(R21-A21)*(Constants!$C$32/100))))/(L_buckboost*micro)*D21*Tsw*nano) -> 0.7393993808 | H21: 0.0001393684211 | I21: 0.7504753976 | J21: 0.0411932337 | K21: 0.2787368421 | L21: 1.070544842 | M21: 0.2282316213 | N21: =(($B$4+Y21)^2+G21^2/12)*(LO_DCR/1000+LO_DCR/1000*(R21-25)*(Constants!$C$32/100)) -> 0.0407063679 | O21: 0.3651628676 | P21: =IF($I$4="None",V_cs^2/RFB_1,VLOOKUP($I$4,Design!$A$99:$F$102,5)) -> 0.0700525394 | Q21: 37.55273917 | R21: 73.17451788 | S21: 196.2475372 | T21: 61.139773 | U21: 12.4 | V21: 1.774698238 | W21: 4.343257443 | X21: 6.117955681 | Y21: 0.6439563788 | Z21: 0.7099197296 | AA21: =IF(R21>=TSD,"TSD",IF(OR(E21=Constants!$C$19,Efficiency!F21=Min_tOFF_typ),IF(E21=Constants!$C$19,"Pulse Skip","Dropout"),"Normal")) -> Normal
A22: =25 -> 25 | B22: 16.10526316 | C22: =IF(Reset=1,VF,FORECAST($B$4+Y22, OFFSET(Design!$C$16:$C$20,MATCH($B$4+Y22,Design!$B$16:$B$20,1)-1,0,2), OFFSET(Design!$B$16:$B$20,MATCH($B$4+Y22,Design!$B$16:$B$20,1)-1,0,2))+(Q22-25)*Design!$B$21/1000) -> 0.4211687372 | D22: =IF(Reset=1,$D$4/(B22+$D$4),MIN(($D$4+C22+Y22*LO_DCR/1000*(1+(R22-25)*(Constants!$C$32/100)))/(B22-Y22*S22/1000+C22+$D$4),(Tsw-Min_tOFF_typ)/Tsw)) -> 0.4460208795 | E22: =IF(D22>=(Tsw-Min_tOFF_typ)/Tsw,Tsw-Min_tOFF_typ,IF(Tsw*Efficiency!D22>Constants!$C$19,Tsw*Efficiency!D22,Constants!$C$19)) -> 223.0104397 | F22: =IF(E22=Constants!$C$19,Tsw-Constants!$C$19,IF(Tsw*(1-Efficiency!D22)>Min_tOFF_typ,Tsw*(1-Efficiency!D22),Min_tOFF_typ)) -> 276.9895603 | G22: =IF(Reset=1,(B22)/(L_buckboost*micro)*D22*Tsw*nano,(B22-($B$4+Y22)*(S22/1000+LO_DCR/1000*(1+(R22-A22)*(Constants!$C$32/100))))/(L_buckboost*micro)*D22*Tsw*nano) -> 0.7531384676 | H22: 0.0001425263158 | I22: 0.7706228095 | J22: 0.03934073722 | K22: 0.2850526316 | L22: 1.095158705 | M22: 0.2292425302 | N22: =(($B$4+Y22)^2+G22^2/12)*(LO_DCR/1000+LO_DCR/1000*(R22-25)*(Constants!$C$32/100)) -> 0.04000989516 | O22: 0.381898513 | P22: =IF($I$4="None",V_cs^2/RFB_1,VLOOKUP($I$4,Design!$A$99:$F$102,5)) -> 0.0700525394 | Q22: 37.60833916 | R22: 74.28214171 | S22: 197.310856 | T22: 63.66547289 | U22: 12.4 | V22: 1.816362182 | W22: 4.343257443 | X22: 6.159619626 | Y22: 0.6322669647 | Z22: 0.7051178006 | AA22: =IF(R22>=TSD,"TSD",IF(OR(E22=Constants!$C$19,Efficiency!F22=Min_tOFF_typ),IF(E22=Constants!$C$19,"Pulse Skip","Dropout"),"Normal")) -> Normal
A23: =25 -> 25 | B23: 16.73684211 | C23: =IF(Reset=1,VF,FORECAST($B$4+Y23, OFFSET(Design!$C$16:$C$20,MATCH($B$4+Y23,Design!$B$16:$B$20,1)-1,0,2), OFFSET(Design!$B$16:$B$20,MATCH($B$4+Y23,Design!$B$16:$B$20,1)-1,0,2))+(Q23-25)*Design!$B$21/1000) -> 0.4203596946 | D23: =IF(Reset=1,$D$4/(B23+$D$4),MIN(($D$4+C23+Y23*LO_DCR/1000*(1+(R23-25)*(Constants!$C$32/100)))/(B23-Y23*S23/1000+C23+$D$4),(Tsw-Min_tOFF_typ)/Tsw)) -> 0.4364018883 | E23: =IF(D23>=(Tsw-Min_tOFF_typ)/Tsw,Tsw-Min_tOFF_typ,IF(Tsw*Efficiency!D23>Constants!$C$19,Tsw*Efficiency!D23,Constants!$C$19)) -> 218.2009442 | F23: =IF(E23=Constants!$C$19,Tsw-Constants!$C$19,IF(Tsw*(1-Efficiency!D23)>Min_tOFF_typ,Tsw*(1-Efficiency!D23),Min_tOFF_typ)) -> 281.7990558 | G23: =IF(Reset=1,(B23)/(L_buckboost*micro)*D23*Tsw*nano,(B23-($B$4+Y23)*(S23/1000+LO_DCR/1000*(1+(R23-A23)*(Constants!$C$32/100))))/(L_buckboost*micro)*D23*Tsw*nano) -> 0.766279959 | H23: 0.0001456842105 | I23: 0.7914082589 | J23: 0.03767936883 | K23: 0.2913684211 | L23: 1.120601733 | M23: 0.2302184325 | N23: =(($B$4+Y23)^2+G23^2/12)*(LO_DCR/1000+LO_DCR/1000*(R23-25)*(Constants!$C$32/100)) -> 0.03939034345 | O23: 0.3990091169 | P23: =IF($I$4="None",V_cs^2/RFB_1,VLOOKUP($I$4,Design!$A$99:$F$102,5)) -> 0.0700525394 | Q23: 37.66201379 | R23: 75.42707798 | S23: 198.4099949 | T23: 66.19105777 | U23: 12.4 | V23: 1.859272165 | W23: 4.343257443 | X23: 6.202529608 | Y23: 0.6214759946 | Z23: 0.7002396953 | AA23: =IF(R23>=TSD,"TSD",IF(OR(E23=Constants!$C$19,Efficiency!F23=Min_tOFF_typ),IF(E23=Constants!$C$19,"Pulse Skip","Dropout"),"Normal")) -> Normal
A24: =25 -> 25 | B24: 17.36842105 | C24: =IF(Reset=1,VF,FORECAST($B$4+Y24, OFFSET(Design!$C$16:$C$20,MATCH($B$4+Y24,Design!$B$16:$B$20,1)-1,0,2), OFFSET(Design!$B$16:$B$20,MATCH($B$4+Y24,Design!$B$16:$B$20,1)-1,0,2))+(Q24-25)*Design!$B$21/1000) -> 0.4196083914 | D24: =IF(Reset=1,$D$4/(B24+$D$4),MIN(($D$4+C24+Y24*LO_DCR/1000*(1+(R24-25)*(Constants!$C$32/100)))/(B24-Y24*S24/1000+C24+$D$4),(Tsw-Min_tOFF_typ)/Tsw)) -> 0.4271917852 | E24: =IF(D24>=(Tsw-Min_tOFF_typ)/Tsw,Tsw-Min_tOFF_typ,IF(Tsw*Efficiency!D24>Constants!$C$19,Tsw*Efficiency!D24,Constants!$C$19)) -> 213.5958926 | F24: =IF(E24=Constants!$C$19,Tsw-Constants!$C$19,IF(Tsw*(1-Efficiency!D24)>Min_tOFF_typ,Tsw*(1-Efficiency!D24),Min_tOFF_typ)) -> 286.4041074 | G24: =IF(Reset=1,(B24)/(L_buckboost*micro)*D24*Tsw*nano,(B24-($B$4+Y24)*(S24/1000+LO_DCR/1000*(1+(R24-A24)*(Constants!$C$32/100))))/(L_buckboost*micro)*D24*Tsw*nano) -> 0.7788624896 | H24: 0.0001488421053 | I24: 0.8128071372 | J24: 0.03618260593 | K24: 0.2976842105 | L24: 1.146822796 | M24: 0.2311606042 | N24: =(($B$4+Y24)^2+G24^2/12)*(LO_DCR/1000+LO_DCR/1000*(R24-25)*(Constants!$C$32/100)) -> 0.03883808106 | O24: 0.4164946792 | P24: =IF($I$4="None",V_cs^2/RFB_1,VLOOKUP($I$4,Design!$A$99:$F$102,5)) -> 0.0700525394 | Q24: 37.71383323 | R24: 76.60702581 | S24: 199.5427448 | T24: 68.71653782 | U24: 12.4 | V24: 1.9033687 | W24: 4.343257443 | X24: 6.246626143 | Y24: 0.611483369 | Z24: 0.6952965239 | AA24: =IF(R24>=TSD,"TSD",IF(OR(E24=Constants!$C$19,Efficiency!F24=Min_tOFF_typ),IF(E24=Constants!$C$19,"Pulse Skip","Dropout"),"Normal")) -> Normal
A25: =25 -> 25 | B25: =Design!$D$4 -> 18 | C25: =IF(Reset=1,VF,FORECAST($B$4+Y25, OFFSET(Design!$C$16:$C$20,MATCH($B$4+Y25,Design!$B$16:$B$20,1)-1,0,2), OFFSET(Design!$B$16:$B$20,MATCH($B$4+Y25,Design!$B$16:$B$20,1)-1,0,2))+(Q25-25)*Design!$B$21/1000) -> 0.4189087558 | D25: =IF(Reset=1,$D$4/(B25+$D$4),MIN(($D$4+C25+Y25*LO_DCR/1000*(1+(R25-25)*(Constants!$C$32/100)))/(B25-Y25*S25/1000+C25+$D$4),(Tsw-Min_tOFF_typ)/Tsw)) -> 0.4183647722 | E25: =IF(D25>=(Tsw-Min_tOFF_typ)/Tsw,Tsw-Min_tOFF_typ,IF(Tsw*Efficiency!D25>Constants!$C$19,Tsw*Efficiency!D25,Constants!$C$19)) -> 209.1823861 | F25: =IF(E25=Constants!$C$19,Tsw-Constants!$C$19,IF(Tsw*(1-Efficiency!D25)>Min_tOFF_typ,Tsw*(1-Efficiency!D25),Min_tOFF_typ)) -> 290.8176139 | G25: =IF(Reset=1,(B25)/(L_buckboost*micro)*D25*Tsw*nano,(B25-($B$4+Y25)*(S25/1000+LO_DCR/1000*(1+(R25-A25)*(Constants!$C$32/100))))/(L_buckboost*micro)*D25*Tsw*nano) -> 0.7909213677 | H25: 0.000152 | I25: 0.8347984061 | J25: 0.0348284806 | K25: 0.304 | L25: 1.173778887 | M25: 0.2320703487 | N25: =(($B$4+Y25)^2+G25^2/12)*(LO_DCR/1000+LO_DCR/1000*(R25-25)*(Constants!$C$32/100)) -> 0.03834502403 | O25: 0.4343552 | P25: =IF($I$4="None",V_cs^2/RFB_1,VLOOKUP($I$4,Design!$A$99:$F$102,5)) -> 0.0700525394 | Q25: 37.76386918 | R25: 77.8200499 | S25: 200.7072479 | T25: 71.24192172 | U25: 12.4 | V25: 1.948601999 | W25: 4.343257443 | X25: 6.291859442 | Y25: 0.6022033747 | Z25: 0.6902979132 | AA25: =IF(R25>=TSD,"TSD",IF(OR(E25=Constants!$C$19,Efficiency!F25=Min_tOFF_typ),IF(E25=Constants!$C$19,"Pulse Skip","Dropout"),"Normal")) -> Normal
A26: 25 | B26: =Vin_nom -> 13.5 | C26: =IF(Reset=1,VF,FORECAST($B$4+Y26, OFFSET(Design!$C$16:$C$20,MATCH($B$4+Y26,Design!$B$16:$B$20,1)-1,0,2), OFFSET(Design!$B$16:$B$20,MATCH($B$4+Y26,Design!$B$16:$B$20,1)-1,0,2))+(Q26-25)*Design!$B$21/1000) -> 0.4243682783 | D26: =IF(Reset=1,$D$4/(B26+$D$4),MIN(($D$4+C26+Y26*LO_DCR/1000*(1+(R26-25)*(Constants!$C$32/100)))/(B26-Y26*S26/1000+C26+$D$4),(Tsw-Min_tOFF_typ)/Tsw)) -> 0.4906609485 | E26: =IF(D26>=(Tsw-Min_tOFF_typ)/Tsw,Tsw-Min_tOFF_typ,IF(Tsw*Efficiency!D26>Constants!$C$19,Tsw*Efficiency!D26,Constants!$C$19)) -> 245.3304742 | F26: =IF(E26=Constants!$C$19,Tsw-Constants!$C$19,IF(Tsw*(1-Efficiency!D26)>Min_tOFF_typ,Tsw*(1-Efficiency!D26),Min_tOFF_typ)) -> 254.6695258 | G26: =IF(Reset=1,(B26)/(L_buckboost*micro)*D26*Tsw*nano,(B26-($B$4+Y26)*(S26/1000+LO_DCR/1000*(1+(R26-A26)*(Constants!$C$32/100))))/(L_buckboost*micro)*D26*Tsw*nano) -> 0.6920956993 | H26: 0.0001295 | I26: 0.6919547571 | J26: 0.04860992579 | K26: 0.259 | L26: 0.9996941829 | M26: 0.2243487267 | N26: =(($B$4+Y26)^2+G26^2/12)*(LO_DCR/1000+LO_DCR/1000*(R26-25)*(Constants!$C$32/100)) -> 0.04351879228 | O26: 0.3152807 | P26: =IF($I$4="None",V_cs^2/RFB_1,VLOOKUP($I$4,Design!$A$99:$F$102,5)) -> 0.0700525394 | Q26: 37.33917997 | R26: 69.98623823 | S26: 193.1867887 | T26: 53.24699874 | U26: 12.4 | V26: 1.652894941 | W26: 4.343257443 | X26: 5.996152384 | Y26: 0.6876808208 | Z26: 0.724340738 | AA26: =IF(R26>=TSD,"TSD",IF(OR(E26=Constants!$C$19,Efficiency!F26=Min_tOFF_typ),IF(E26=Constants!$C$19,"Pulse Skip","Dropout"),"Normal")) -> Normal
A27: T (°C) | B27: VIN | C27: VF | D27: Duty | E27: TON(ns) | F27: TOFF | G27: ΔIL | H27: PIQ | I27: Psw | J27: Pcond | K27: PDRIVER | L27: PIC | M27: PD1 | N27: PIND | O27: PSNUB | P27: PSENSE | Q27: TJD1 | R27: TJIC | S27: RDSon | T27: VOSAT | U27: VOUT | V27: PLOSS_tol | W27: POUT | X27: PIN | Y27: IL,AVG | Z27: Efficiency | AA27: Operating Condition
A28: =Design!$D$13 -> 85 | B28: =Efficiency!B6 -> 6 | C28: =IF(Reset=1,VF,FORECAST($B$4+Y28, OFFSET(Design!$C$16:$C$20,MATCH($B$4+Y28,Design!$B$16:$B$20,1)-1,0,2), OFFSET(Design!$B$16:$B$20,MATCH($B$4+Y28,Design!$B$16:$B$20,1)-1,0,2))+(Q28-25)*Design!$B$21/1000) -> 0.3876065061 | D28: =IF(Reset=1,$D$4/(B28+$D$4),MIN(($D$4+C28+Y28*LO_DCR/1000*(1+(R28-25)*(Constants!$C$32/100)))/(B28-Y28*S28/1000+C28+$D$4),(Tsw-Min_tOFF_typ)/Tsw)) -> 0.6944963891 | E28: =IF(D28>=(Tsw-Min_tOFF_typ)/Tsw,Tsw-Min_tOFF_typ,IF(Tsw*Efficiency!D28>Constants!$C$19,Tsw*Efficiency!D28,Constants!$C$19)) -> 347.2481946 | F28: =IF(E28=Constants!$C$19,Tsw-Constants!$C$19,IF(Tsw*(1-Efficiency!D28)>Min_tOFF_typ,Tsw*(1-Efficiency!D28),Min_tOFF_typ)) -> 152.7518054 | G28: =IF(Reset=1,(B28)/(L_buckboost*micro)*D28*Tsw*nano,(B28-($B$4+Y28)*(S28/1000+LO_DCR/1000*(1+(R28-A28)*(Constants!$C$32/100))))/(L_buckboost*micro)*D28*Tsw*nano) -> 0.4103279625 | H28: =(B28+$D$4)*Iq*micro -> 9.2e-05 | I28: =(B28+$D$4)*Y28*((B28+$D$4)/(Slew_rise*10^9)*fsw*10^6/2+(B28+$D$4)/(Slew_fall*10^9)*fsw*10^6/2) -> 0.5822432264 | J28: =D28*(($B$4+Y28)^2+G28^2/12)*S28*10^-3 -> 0.4041972802 | K28: =Qg*10^-9*(B28+$D$4)*fsw*10^6 -> 0.184 | L28: =SUM(H28:K28) -> 1.170532507 | M28: =($B$4+Y28)*C28*(1-D28) -> 0.177240523 | N28: =(($B$4+Y28)^2+G28^2/12)*(LO_DCR/1000+LO_DCR/1000*(R28-25)*(Constants!$C$32/100)) -> 0.107661245 | O28: =0.5*C_SNUB*10^-12*(B28+$D$4)^2*fsw*10^6 -> 0.1591232 | P28: =IF($I$4="None",V_cs^2/RFB_1,VLOOKUP($I$4,Design!$A$99:$F$102,5)) -> 0.0700525394 | Q28: =$A28+M28*RthJA -> 94.74822877 | R28: =MIN(L28*RthJA_IC+$A28,190) -> 137.6739628 | S28: =IF(Reset=1,Rdson,Rdson+Rdson*TCR_RdsON/100*(R28-25)) -> 258.1670043 | T28: =(Max_Duty_Dropout*(B28+C28-$B$4*S28/1000)-(C28+$B$4*LO_DCR/1000))/(1-Max_Duty_Dropout) -> 23.19271993 | U28: =IF(Reset=1,VOUT,IF(T28>VOUT,VOUT,T28)) -> 12.4 | V28: =SUM(L28:P28) -> 1.684610014 | W28: =U28*$B$4 -> 4.343257443 | X28: =V28+W28 -> 6.027867457 | Y28: =IF(Reset=1,W28/B28/0.8,$B$4/(1-D28)) -> 1.146509189 | Z28: =W28/(W28+V28) -> 0.7205296855 | AA28: =IF(R28>=TSD,"TSD",IF(OR(E28=Constants!$C$19,Efficiency!F28=Min_tOFF_typ),IF(E28=Constants!$C$19,"Pulse Skip","Dropout"),"Normal")) -> Normal
A29: =Design!$D$13 -> 85 | B29: =($B$25-$B$6)/19+B28 -> 6.631578947 | C29: =IF(Reset=1,VF,FORECAST($B$4+Y29, OFFSET(Design!$C$16:$C$20,MATCH($B$4+Y29,Design!$B$16:$B$20,1)-1,0,2), OFFSET(Design!$B$16:$B$20,MATCH($B$4+Y29,Design!$B$16:$B$20,1)-1,0,2))+(Q29-25)*Design!$B$21/1000) -> 0.3837554857 | D29: =IF(Reset=1,$D$4/(B29+$D$4),MIN(($D$4+C29+Y29*LO_DCR/1000*(1+(R29-25)*(Constants!$C$32/100)))/(B29-Y29*S29/1000+C29+$D$4),(Tsw-Min_tOFF_typ)/Tsw)) -> 0.6704139118 | E29: =IF(D29>=(Tsw-Min_tOFF_typ)/Tsw,Tsw-Min_tOFF_typ,IF(Tsw*Efficiency!D29>Constants!$C$19,Tsw*Efficiency!D29,Constants!$C$19)) -> 335.2069559 | F29: =IF(E29=Constants!$C$19,Tsw-Constants!$C$19,IF(Tsw*(1-Efficiency!D29)>Min_tOFF_typ,Tsw*(1-Efficiency!D29),Min_tOFF_typ)) -> 164.7930441 | G29: =IF(Reset=1,(B29)/(L_buckboost*micro)*D29*Tsw*nano,(B29-($B$4+Y29)*(S29/1000+LO_DCR/1000*(1+(R29-A29)*(Constants!$C$32/100))))/(L_buckboost*micro)*D29*Tsw*nano) -> 0.4432104317 | H29: 9.515789474e-05 | I29: 0.5773855573 | J29: 0.3450317549 | K29: 0.1903157895 | L29: 1.11282826 | M29: 0.1787166217 | N29: =(($B$4+Y29)^2+G29^2/12)*(LO_DCR/1000+LO_DCR/1000*(R29-25)*(Constants!$C$32/100)) -> 0.0954516042 | O29: 0.1702344687 | P29: =IF($I$4="None",V_cs^2/RFB_1,VLOOKUP($I$4,Design!$A$99:$F$102,5)) -> 0.0700525394 | Q29: 94.82941419 | R29: 135.0772717 | S29: 255.6741808 | T29: 25.72637931 | U29: 12.4 | V29: 1.627283494 | W29: 4.343257443 | X29: 5.970540937 | Y29: 1.062735078 | Z29: 0.7274478961 | AA29: =IF(R29>=TSD,"TSD",IF(OR(E29=Constants!$C$19,Efficiency!F29=Min_tOFF_typ),IF(E29=Constants!$C$19,"Pulse Skip","Dropout"),"Normal")) -> Normal
A30: =Design!$D$13 -> 85 | B30: =($B$25-$B$6)/19+B29 -> 7.263157895 | C30: =IF(Reset=1,VF,FORECAST($B$4+Y30, OFFSET(Design!$C$16:$C$20,MATCH($B$4+Y30,Design!$B$16:$B$20,1)-1,0,2), OFFSET(Design!$B$16:$B$20,MATCH($B$4+Y30,Design!$B$16:$B$20,1)-1,0,2))+(Q30-25)*Design!$B$21/1000) -> 0.3806469272 | D30: =IF(Reset=1,$D$4/(B30+$D$4),MIN(($D$4+C30+Y30*LO_DCR/1000*(1+(R30-25)*(Constants!$C$32/100)))/(B30-Y30*S30/1000+C30+$D$4),(Tsw-Min_tOFF_typ)/Tsw)) -> 0.6481586678 | E30: =IF(D30>=(Tsw-Min_tOFF_typ)/Tsw,Tsw-Min_tOFF_typ,IF(Tsw*Efficiency!D30>Constants!$C$19,Tsw*Efficiency!D30,Constants!$C$19)) -> 324.0793339 | F30: =IF(E30=Constants!$C$19,Tsw-Constants!$C$19,IF(Tsw*(1-Efficiency!D30)>Min_tOFF_typ,Tsw*(1-Efficiency!D30),Min_tOFF_typ)) -> 175.9206661 | G30: =IF(Reset=1,(B30)/(L_buckboost*micro)*D30*Tsw*nano,(B30-($B$4+Y30)*(S30/1000+LO_DCR/1000*(1+(R30-A30)*(Constants!$C$32/100))))/(L_buckboost*micro)*D30*Tsw*nano) -> 0.4735858696 | H30: 9.831578947e-05 | I30: 0.5773575153 | J30: 0.3013126345 | K30: 0.1966315789 | L30: 1.075400045 | M30: 0.1802361643 | N30: =(($B$4+Y30)^2+G30^2/12)*(LO_DCR/1000+LO_DCR/1000*(R30-25)*(Constants!$C$32/100)) -> 0.0863668659 | O30: 0.1817206958 | P30: =IF($I$4="None",V_cs^2/RFB_1,VLOOKUP($I$4,Design!$A$99:$F$102,5)) -> 0.0700525394 | Q30: 94.91298904 | R30: 133.393002 | S30: 254.0572819 | T30: 28.25806902 | U30: 12.4 | V30: 1.59377631 | W30: 4.343257443 | X30: 5.937033753 | Y30: 0.9955132185 | Z30: 0.7315534362 | AA30: =IF(R30>=TSD,"TSD",IF(OR(E30=Constants!$C$19,Efficiency!F30=Min_tOFF_typ),IF(E30=Constants!$C$19,"Pulse Skip","Dropout"),"Normal")) -> Normal
A31: =Design!$D$13 -> 85 | B31: 7.894736842 | C31: =IF(Reset=1,VF,FORECAST($B$4+Y31, OFFSET(Design!$C$16:$C$20,MATCH($B$4+Y31,Design!$B$16:$B$20,1)-1,0,2), OFFSET(Design!$B$16:$B$20,MATCH($B$4+Y31,Design!$B$16:$B$20,1)-1,0,2))+(Q31-25)*Design!$B$21/1000) -> 0.3780755293 | D31: =IF(Reset=1,$D$4/(B31+$D$4),MIN(($D$4+C31+Y31*LO_DCR/1000*(1+(R31-25)*(Constants!$C$32/100)))/(B31-Y31*S31/1000+C31+$D$4),(Tsw-Min_tOFF_typ)/Tsw)) -> 0.6274717268 | E31: =IF(D31>=(Tsw-Min_tOFF_typ)/Tsw,Tsw-Min_tOFF_typ,IF(Tsw*Efficiency!D31>Constants!$C$19,Tsw*Efficiency!D31,Constants!$C$19)) -> 313.7358634 | F31: =IF(E31=Constants!$C$19,Tsw-Constants!$C$19,IF(Tsw*(1-Efficiency!D31)>Min_tOFF_typ,Tsw*(1-Efficiency!D31),Min_tOFF_typ)) -> 186.2641366 | G31: =IF(Reset=1,(B31)/(L_buckboost*micro)*D31*Tsw*nano,(B31-($B$4+Y31)*(S31/1000+LO_DCR/1000*(1+(R31-A31)*(Constants!$C$32/100))))/(L_buckboost*micro)*D31*Tsw*nano) -> 0.5018131554 | H31: 0.0001014736842 | I31: 0.5808884692 | J31: 0.2677446592 | K31: 0.2029473684 | L31: 1.051681971 | M31: 0.1817580922 | N31: =(($B$4+Y31)^2+G31^2/12)*(LO_DCR/1000+LO_DCR/1000*(R31-25)*(Constants!$C$32/100)) -> 0.07936216515 | O31: 0.1935818814 | P31: =IF($I$4="None",V_cs^2/RFB_1,VLOOKUP($I$4,Design!$A$99:$F$102,5)) -> 0.0700525394 | Q31: 94.99669507 | R31: 132.3256887 | S31: 253.0326611 | T31: 30.78839175 | U31: 12.4 | V31: 1.576436649 | W31: 4.343257443 | X31: 5.919694092 | Y31: 0.9402311776 | Z31: 0.7336962647 | AA31: =IF(R31>=TSD,"TSD",IF(OR(E31=Constants!$C$19,Efficiency!F31=Min_tOFF_typ),IF(E31=Constants!$C$19,"Pulse Skip","Dropout"),"Normal")) -> Normal
A32: =Design!$D$13 -> 85 | B32: 8.526315789 | C32: =IF(Reset=1,VF,FORECAST($B$4+Y32, OFFSET(Design!$C$16:$C$20,MATCH($B$4+Y32,Design!$B$16:$B$20,1)-1,0,2), OFFSET(Design!$B$16:$B$20,MATCH($B$4+Y32,Design!$B$16:$B$20,1)-1,0,2))+(Q32-25)*Design!$B$21/1000) -> 0.3759075894 | D32: =IF(Reset=1,$D$4/(B32+$D$4),MIN(($D$4+C32+Y32*LO_DCR/1000*(1+(R32-25)*(Constants!$C$32/100)))/(B32-Y32*S32/1000+C32+$D$4),(Tsw-Min_tOFF_typ)/Tsw)) -> 0.6081585713 | E32: =IF(D32>=(Tsw-Min_tOFF_typ)/Tsw,Tsw-Min_tOFF_typ,IF(Tsw*Efficiency!D32>Constants!$C$19,Tsw*Efficiency!D32,Constants!$C$19)) -> 304.0792856 | F32: =IF(E32=Constants!$C$19,Tsw-Constants!$C$19,IF(Tsw*(1-Efficiency!D32)>Min_tOFF_typ,Tsw*(1-Efficiency!D32),Min_tOFF_typ)) -> 195.9207144 | G32: =IF(Reset=1,(B32)/(L_buckboost*micro)*D32*Tsw*nano,(B32-($B$4+Y32)*(S32/1000+LO_DCR/1000*(1+(R32-A32)*(Constants!$C$32/100))))/(L_buckboost*micro)*D32*Tsw*nano) -> 0.5281608322 | H32: 0.0001046315789 | I32: 0.5871652497 | J32: 0.2412004835 | K32: 0.2092631579 | L32: 1.037733523 | M32: 0.1832587588 | N32: =(($B$4+Y32)^2+G32^2/12)*(LO_DCR/1000+LO_DCR/1000*(R32-25)*(Constants!$C$32/100)) -> 0.07381243124 | O32: 0.2058180255 | P32: =IF($I$4="None",V_cs^2/RFB_1,VLOOKUP($I$4,Design!$A$99:$F$102,5)) -> 0.0700525394 | Q32: 95.07923173 | R32: 131.6980085 | S32: 252.4300882 | T32: 33.31771972 | U32: 12.4 | V32: 1.570675277 | W32: 4.343257443 | X32: 5.913932721 | Y32: 0.893888883 | Z32: 0.7344110338 | AA32: =IF(R32>=TSD,"TSD",IF(OR(E32=Constants!$C$19,Efficiency!F32=Min_tOFF_typ),IF(E32=Constants!$C$19,"Pulse Skip","Dropout"),"Normal")) -> Normal
A33: =Design!$D$13 -> 85 | B33: 9.157894737 | C33: =IF(Reset=1,VF,FORECAST($B$4+Y33, OFFSET(Design!$C$16:$C$20,MATCH($B$4+Y33,Design!$B$16:$B$20,1)-1,0,2), OFFSET(Design!$B$16:$B$20,MATCH($B$4+Y33,Design!$B$16:$B$20,1)-1,0,2))+(Q33-25)*Design!$B$21/1000) -> 0.3740515729 | D33: =IF(Reset=1,$D$4/(B33+$D$4),MIN(($D$4+C33+Y33*LO_DCR/1000*(1+(R33-25)*(Constants!$C$32/100)))/(B33-Y33*S33/1000+C33+$D$4),(Tsw-Min_tOFF_typ)/Tsw)) -> 0.5900653548 | E33: =IF(D33>=(Tsw-Min_tOFF_typ)/Tsw,Tsw-Min_tOFF_typ,IF(Tsw*Efficiency!D33>Constants!$C$19,Tsw*Efficiency!D33,Constants!$C$19)) -> 295.0326774 | F33: =IF(E33=Constants!$C$19,Tsw-Constants!$C$19,IF(Tsw*(1-Efficiency!D33)>Min_tOFF_typ,Tsw*(1-Efficiency!D33),Min_tOFF_typ)) -> 204.9673226 | G33: =IF(Reset=1,(B33)/(L_buckboost*micro)*D33*Tsw*nano,(B33-($B$4+Y33)*(S33/1000+LO_DCR/1000*(1+(R33-A33)*(Constants!$C$32/100))))/(L_buckboost*micro)*D33*Tsw*nano) -> 0.5528406876 | H33: 0.0001077894737 | I33: 0.5956391246 | J33: 0.2197127993 | K33: 0.2155789474 | L33: 1.031038661 | M33: 0.1847244385 | N33: =(($B$4+Y33)^2+G33^2/12)*(LO_DCR/1000+LO_DCR/1000*(R33-25)*(Constants!$C$32/100)) -> 0.06932004655 | O33: 0.218429128 | P33: =IF($I$4="None",V_cs^2/RFB_1,VLOOKUP($I$4,Design!$A$99:$F$102,5)) -> 0.0700525394 | Q33: 95.15984411 | R33: 131.3967397 | S33: 252.1408701 | T33: 35.84629673 | U33: 12.4 | V33: 1.573564813 | W33: 4.343257443 | X33: 5.916822256 | Y33: 0.8544354597 | Z33: 0.7340523773 | AA33: =IF(R33>=TSD,"TSD",IF(OR(E33=Constants!$C$19,Efficiency!F33=Min_tOFF_typ),IF(E33=Constants!$C$19,"Pulse Skip","Dropout"),"Normal")) -> Normal
A34: =Design!$D$13 -> 85 | B34: 9.789473684 | C34: =IF(Reset=1,VF,FORECAST($B$4+Y34, OFFSET(Design!$C$16:$C$20,MATCH($B$4+Y34,Design!$B$16:$B$20,1)-1,0,2), OFFSET(Design!$B$16:$B$20,MATCH($B$4+Y34,Design!$B$16:$B$20,1)-1,0,2))+(Q34-25)*Design!$B$21/1000) -> 0.3724423632 | D34: =IF(Reset=1,$D$4/(B34+$D$4),MIN(($D$4+C34+Y34*LO_DCR/1000*(1+(R34-25)*(Constants!$C$32/100)))/(B34-Y34*S34/1000+C34+$D$4),(Tsw-Min_tOFF_typ)/Tsw)) -> 0.5730660942 | E34: =IF(D34>=(Tsw-Min_tOFF_typ)/Tsw,Tsw-Min_tOFF_typ,IF(Tsw*Efficiency!D34>Constants!$C$19,Tsw*Efficiency!D34,Constants!$C$19)) -> 286.5330471 | F34: =IF(E34=Constants!$C$19,Tsw-Constants!$C$19,IF(Tsw*(1-Efficiency!D34)>Min_tOFF_typ,Tsw*(1-Efficiency!D34),Min_tOFF_typ)) -> 213.4669529 | G34: =IF(Reset=1,(B34)/(L_buckboost*micro)*D34*Tsw*nano,(B34-($B$4+Y34)*(S34/1000+LO_DCR/1000*(1+(R34-A34)*(Constants!$C$32/100))))/(L_buckboost*micro)*D34*Tsw*nano) -> 0.5760257907 | H34: 0.0001109473684 | I34: 0.6059244851 | J34: 0.2019823042 | K34: 0.2218947368 | L34: 1.029912474 | M34: 0.1861473331 | N34: =(($B$4+Y34)^2+G34^2/12)*(LO_DCR/1000+LO_DCR/1000*(R34-25)*(Constants!$C$32/100)) -> 0.06561981805 | O34: 0.2314151889 | P34: =IF($I$4="None",V_cs^2/RFB_1,VLOOKUP($I$4,Design!$A$99:$F$102,5)) -> 0.0700525394 | Q34: 95.23810332 | R34: 131.3460613 | S34: 252.0922189 | T34: 38.3742899 | U34: 12.4 | V34: 1.583147353 | W34: 4.343257443 | X34: 5.926404796 | Y34: 0.8204143365 | Z34: 0.7328654711 | AA34: =IF(R34>=TSD,"TSD",IF(OR(E34=Constants!$C$19,Efficiency!F34=Min_tOFF_typ),IF(E34=Constants!$C$19,"Pulse Skip","Dropout"),"Normal")) -> Normal
A35: =Design!$D$13 -> 85 | B35: 10.42105263 | C35: =IF(Reset=1,VF,FORECAST($B$4+Y35, OFFSET(Design!$C$16:$C$20,MATCH($B$4+Y35,Design!$B$16:$B$20,1)-1,0,2), OFFSET(Design!$B$16:$B$20,MATCH($B$4+Y35,Design!$B$16:$B$20,1)-1,0,2))+(Q35-25)*Design!$B$21/1000) -> 0.3710321961 | D35: =IF(Reset=1,$D$4/(B35+$D$4),MIN(($D$4+C35+Y35*LO_DCR/1000*(1+(R35-25)*(Constants!$C$32/100)))/(B35-Y35*S35/1000+C35+$D$4),(Tsw-Min_tOFF_typ)/Tsw)) -> 0.5570550773 | E35: =IF(D35>=(Tsw-Min_tOFF_typ)/Tsw,Tsw-Min_tOFF_typ,IF(Tsw*Efficiency!D35>Constants!$C$19,Tsw*Efficiency!D35,Constants!$C$19)) -> 278.5275386 | F35: =IF(E35=Constants!$C$19,Tsw-Constants!$C$19,IF(Tsw*(1-Efficiency!D35)>Min_tOFF_typ,Tsw*(1-Efficiency!D35),Min_tOFF_typ)) -> 221.4724614 | G35: =IF(Reset=1,(B35)/(L_buckboost*micro)*D35*Tsw*nano,(B35-($B$4+Y35)*(S35/1000+LO_DCR/1000*(1+(R35-A35)*(Constants!$C$32/100))))/(L_buckboost*micro)*D35*Tsw*nano) -> 0.5978611412 | H35: 0.0001141052632 | I35: 0.6177414792 | J35: 0.1871168412 | K35: 0.2282105263 | L35: 1.033182952 | M35: 0.1875233007 | N35: =(($B$4+Y35)^2+G35^2/12)*(LO_DCR/1000+LO_DCR/1000*(R35-25)*(Constants!$C$32/100)) -> 0.06252805749 | O35: 0.2447762083 | P35: =IF($I$4="None",V_cs^2/RFB_1,VLOOKUP($I$4,Design!$A$99:$F$102,5)) -> 0.0700525394 | Q35: 95.31378154 | R35: 131.4932328 | S35: 252.2335035 | T35: 40.9018179 | U35: 12.4 | V35: 1.598063058 | W35: 4.343257443 | X35: 5.941320501 | Y35: 0.790759029 | Z35: 0.7310256099 | AA35: =IF(R35>=TSD,"TSD",IF(OR(E35=Constants!$C$19,Efficiency!F35=Min_tOFF_typ),IF(E35=Constants!$C$19,"Pulse Skip","Dropout"),"Normal")) -> Normal
A36: =Design!$D$13 -> 85 | B36: 11.05263158 | C36: =IF(Reset=1,VF,FORECAST($B$4+Y36, OFFSET(Design!$C$16:$C$20,MATCH($B$4+Y36,Design!$B$16:$B$20,1)-1,0,2), OFFSET(Design!$B$16:$B$20,MATCH($B$4+Y36,Design!$B$16:$B$20,1)-1,0,2))+(Q36-25)*Design!$B$21/1000) -> 0.3697851443 | D36: =IF(Reset=1,$D$4/(B36+$D$4),MIN(($D$4+C36+Y36*LO_DCR/1000*(1+(R36-25)*(Constants!$C$32/100)))/(B36-Y36*S36/1000+C36+$D$4),(Tsw-Min_tOFF_typ)/Tsw)) -> 0.5419420141 | E36: =IF(D36>=(Tsw-Min_tOFF_typ)/Tsw,Tsw-Min_tOFF_typ,IF(Tsw*Efficiency!D36>Constants!$C$19,Tsw*Efficiency!D36,Constants!$C$19)) -> 270.9710071 | F36: =IF(E36=Constants!$C$19,Tsw-Constants!$C$19,IF(Tsw*(1-Efficiency!D36)>Min_tOFF_typ,Tsw*(1-Efficiency!D36),Min_tOFF_typ)) -> 229.0289929 | G36: =IF(Reset=1,(B36)/(L_buckboost*micro)*D36*Tsw*nano,(B36-($B$4+Y36)*(S36/1000+LO_DCR/1000*(1+(R36-A36)*(Constants!$C$32/100))))/(L_buckboost*micro)*D36*Tsw*nano) -> 0.6184704429 | H36: 0.0001172631579 | I36: 0.6308815835 | J36: 0.1744839524 | K36: 0.2345263158 | L36: 1.040009115 | M36: 0.1888505018 | N36: =(($B$4+Y36)^2+G36^2/12)*(LO_DCR/1000+LO_DCR/1000*(R36-25)*(Constants!$C$32/100)) -> 0.05991352388 | O36: 0.2585121861 | P36: =IF($I$4="None",V_cs^2/RFB_1,VLOOKUP($I$4,Design!$A$99:$F$102,5)) -> 0.0700525394 | Q36: 95.3867776 | R36: 131.8004102 | S36: 252.5283938 | T36: 43.42896759 | U36: 12.4 | V36: 1.617337866 | W36: 4.343257443 | X36: 5.960595309 | Y36: 0.7646689018 | Z36: 0.7286616886 | AA36: =IF(R36>=TSD,"TSD",IF(OR(E36=Constants!$C$19,Efficiency!F36=Min_tOFF_typ),IF(E36=Constants!$C$19,"Pulse Skip","Dropout"),"Normal")) -> Normal
A37: =Design!$D$13 -> 85 | B37: 11.68421053 | C37: =IF(Reset=1,VF,FORECAST($B$4+Y37, OFFSET(Design!$C$16:$C$20,MATCH($B$4+Y37,Design!$B$16:$B$20,1)-1,0,2), OFFSET(Design!$B$16:$B$20,MATCH($B$4+Y37,Design!$B$16:$B$20,1)-1,0,2))+(Q37-25)*Design!$B$21/1000) -> 0.3686736077 | D37: =IF(Reset=1,$D$4/(B37+$D$4),MIN(($D$4+C37+Y37*LO_DCR/1000*(1+(R37-25)*(Constants!$C$32/100)))/(B37-Y37*S37/1000+C37+$D$4),(Tsw-Min_tOFF_typ)/Tsw)) -> 0.5276487525 | E37: =IF(D37>=(Tsw-Min_tOFF_typ)/Tsw,Tsw-Min_tOFF_typ,IF(Tsw*Efficiency!D37>Constants!$C$19,Tsw*Efficiency!D37,Constants!$C$19)) -> 263.8243762 | F37: =IF(E37=Constants!$C$19,Tsw-Constants!$C$19,IF(Tsw*(1-Efficiency!D37)>Min_tOFF_typ,Tsw*(1-Efficiency!D37),Min_tOFF_typ)) -> 236.1756238 | G37: =IF(Reset=1,(B37)/(L_buckboost*micro)*D37*Tsw*nano,(B37-($B$4+Y37)*(S37/1000+LO_DCR/1000*(1+(R37-A37)*(Constants!$C$32/100))))/(L_buckboost*micro)*D37*Tsw*nano) -> 0.6379606775 | H37: 0.0001204210526 | I37: 0.645185962 | J37: 0.1636231402 | K37: 0.2408421053 | L37: 1.049771629 | M37: 0.1901285626 | N37: =(($B$4+Y37)^2+G37^2/12)*(LO_DCR/1000+LO_DCR/1000*(R37-25)*(Constants!$C$32/100)) -> 0.05767998253 | O37: 0.2726231224 | P37: =IF($I$4="None",V_cs^2/RFB_1,VLOOKUP($I$4,Design!$A$99:$F$102,5)) -> 0.0700525394 | Q37: 95.45707094 | R37: 132.2397233 | S37: 252.9501344 | T37: 45.95580404 | U37: 12.4 | V37: 1.640255836 | W37: 4.343257443 | X37: 5.983513279 | Y37: 0.7415301618 | Z37: 0.7258707787 | AA37: =IF(R37>=TSD,"TSD",IF(OR(E37=Constants!$C$19,Efficiency!F37=Min_tOFF_typ),IF(E37=Constants!$C$19,"Pulse Skip","Dropout"),"Normal")) -> Normal
A38: =Design!$D$13 -> 85 | B38: 12.31578947 | C38: =IF(Reset=1,VF,FORECAST($B$4+Y38, OFFSET(Design!$C$16:$C$20,MATCH($B$4+Y38,Design!$B$16:$B$20,1)-1,0,2), OFFSET(Design!$B$16:$B$20,MATCH($B$4+Y38,Design!$B$16:$B$20,1)-1,0,2))+(Q38-25)*Design!$B$21/1000) -> 0.3676759982 | D38: =IF(Reset=1,$D$4/(B38+$D$4),MIN(($D$4+C38+Y38*LO_DCR/1000*(1+(R38-25)*(Constants!$C$32/100)))/(B38-Y38*S38/1000+C38+$D$4),(Tsw-Min_tOFF_typ)/Tsw)) -> 0.5141069423 | E38: =IF(D38>=(Tsw-Min_tOFF_typ)/Tsw,Tsw-Min_tOFF_typ,IF(Tsw*Efficiency!D38>Constants!$C$19,Tsw*Efficiency!D38,Constants!$C$19)) -> 257.0534711 | F38: =IF(E38=Constants!$C$19,Tsw-Constants!$C$19,IF(Tsw*(1-Efficiency!D38)>Min_tOFF_typ,Tsw*(1-Efficiency!D38),Min_tOFF_typ)) -> 242.9465289 | G38: =IF(Reset=1,(B38)/(L_buckboost*micro)*D38*Tsw*nano,(B38-($B$4+Y38)*(S38/1000+LO_DCR/1000*(1+(R38-A38)*(Constants!$C$32/100))))/(L_buckboost*micro)*D38*Tsw*nano) -> 0.6564253464 | H38: 0.0001235789474 | I38: 0.6605313381 | J38: 0.1541913974 | K38: 0.2471578947 | L38: 1.062004209 | M38: 0.1913580432 | N38: =(($B$4+Y38)^2+G38^2/12)*(LO_DCR/1000+LO_DCR/1000*(R38-25)*(Constants!$C$32/100)) -> 0.05575529165 | O38: 0.2871090172 | P38: =IF($I$4="None",V_cs^2/RFB_1,VLOOKUP($I$4,Design!$A$99:$F$102,5)) -> 0.0700525394 | Q38: 95.52469237 | R38: 132.7901894 | S38: 253.4785818 | T38: 48.48237705 | U38: 12.4 | V38: 1.666279101 | W38: 4.343257443 | X38: 6.009536544 | Y38: 0.720863761 | Z38: 0.7227275201 | AA38: =IF(R38>=TSD,"TSD",IF(OR(E38=Constants!$C$19,Efficiency!F38=Min_tOFF_typ),IF(E38=Constants!$C$19,"Pulse Skip","Dropout"),"Normal")) -> Normal
A39: =Design!$D$13 -> 85 | B39: 12.94736842 | C39: =IF(Reset=1,VF,FORECAST($B$4+Y39, OFFSET(Design!$C$16:$C$20,MATCH($B$4+Y39,Design!$B$16:$B$20,1)-1,0,2), OFFSET(Design!$B$16:$B$20,MATCH($B$4+Y39,Design!$B$16:$B$20,1)-1,0,2))+(Q39-25)*Design!$B$21/1000) -> 0.3667751655 | D39: =IF(Reset=1,$D$4/(B39+$D$4),MIN(($D$4+C39+Y39*LO_DCR/1000*(1+(R39-25)*(Constants!$C$32/100)))/(B39-Y39*S39/1000+C39+$D$4),(Tsw-Min_tOFF_typ)/Tsw)) -> 0.5012563105 | E39: =IF(D39>=(Tsw-Min_tOFF_typ)/Tsw,Tsw-Min_tOFF_typ,IF(Tsw*Efficiency!D39>Constants!$C$19,Tsw*Efficiency!D39,Constants!$C$19)) -> 250.6281553 | F39: =IF(E39=Constants!$C$19,Tsw-Constants!$C$19,IF(Tsw*(1-Efficiency!D39)>Min_tOFF_typ,Tsw*(1-Efficiency!D39),Min_tOFF_typ)) -> 249.3718447 | G39: =IF(Reset=1,(B39)/(L_buckboost*micro)*D39*Tsw*nano,(B39-($B$4+Y39)*(S39/1000+LO_DCR/1000*(1+(R39-A39)*(Constants!$C$32/100))))/(L_buckboost*micro)*D39*Tsw*nano) -> 0.6739468589 | H39: 0.0001267368421 | I39: 0.6768204735 | J39: 0.1459281669 | K39: 0.2534736842 | L39: 1.076349061 | M39: 0.1925400927 | N39: =(($B$4+Y39)^2+G39^2/12)*(LO_DCR/1000+LO_DCR/1000*(R39-25)*(Constants!$C$32/100)) -> 0.05408433069 | O39: 0.3019698704 | P39: =IF($I$4="None",V_cs^2/RFB_1,VLOOKUP($I$4,Design!$A$99:$F$102,5)) -> 0.0700525394 | Q39: 95.5897051 | R39: 133.4357078 | S39: 254.0982795 | T39: 51.00872545 | U39: 12.4 | V39: 1.694995895 | W39: 4.343257443 | X39: 6.038253338 | Y39: 0.7022899827 | Z39: 0.7192903643 | AA39: =IF(R39>=TSD,"TSD",IF(OR(E39=Constants!$C$19,Efficiency!F39=Min_tOFF_typ),IF(E39=Constants!$C$19,"Pulse Skip","Dropout"),"Normal")) -> Normal
A40: =Design!$D$13 -> 85 | B40: 13.57894737 | C40: =IF(Reset=1,VF,FORECAST($B$4+Y40, OFFSET(Design!$C$16:$C$20,MATCH($B$4+Y40,Design!$B$16:$B$20,1)-1,0,2), OFFSET(Design!$B$16:$B$20,MATCH($B$4+Y40,Design!$B$16:$B$20,1)-1,0,2))+(Q40-25)*Design!$B$21/1000) -> 0.3659572974 | D40: =IF(Reset=1,$D$4/(B40+$D$4),MIN(($D$4+C40+Y40*LO_DCR/1000*(1+(R40-25)*(Constants!$C$32/100)))/(B40-Y40*S40/1000+C40+$D$4),(Tsw-Min_tOFF_typ)/Tsw)) -> 0.489043346 | E40: =IF(D40>=(Tsw-Min_tOFF_typ)/Tsw,Tsw-Min_tOFF_typ,IF(Tsw*Efficiency!D40>Constants!$C$19,Tsw*Efficiency!D40,Constants!$C$19)) -> 244.521673 | F40: =IF(E40=Constants!$C$19,Tsw-Constants!$C$19,IF(Tsw*(1-Efficiency!D40)>Min_tOFF_typ,Tsw*(1-Efficiency!D40),Min_tOFF_typ)) -> 255.478327 | G40: =IF(Reset=1,(B40)/(L_buckboost*micro)*D40*Tsw*nano,(B40-($B$4+Y40)*(S40/1000+LO_DCR/1000*(1+(R40-A40)*(Constants!$C$32/100))))/(L_buckboost*micro)*D40*Tsw*nano) -> 0.6905983491 | H40: 0.0001298947368 | I40: 0.6939755783 | J40: 0.1386321035 | K40: 0.2597894737 | L40: 1.09252705 | M40: 0.1936762219 | N40: =(($B$4+Y40)^2+G40^2/12)*(LO_DCR/1000+LO_DCR/1000*(R40-25)*(Constants!$C$32/100)) -> 0.05262427902 | O40: 0.317205682 | P40: =IF($I$4="None",V_cs^2/RFB_1,VLOOKUP($I$4,Design!$A$99:$F$102,5)) -> 0.0700525394 | Q40: 95.65219221 | R40: 134.1637173 | S40: 254.7971686 | T40: 53.53487993 | U40: 12.4 | V40: 1.726085773 | W40: 4.343257443 | X40: 6.069343216 | Y40: 0.6855037395 | Z40: 0.7156058388 | AA40: =IF(R40>=TSD,"TSD",IF(OR(E40=Constants!$C$19,Efficiency!F40=Min_tOFF_typ),IF(E40=Constants!$C$19,"Pulse Skip","Dropout"),"Normal")) -> Normal
A41: =Design!$D$13 -> 85 | B41: 14.21052632 | C41: =IF(Reset=1,VF,FORECAST($B$4+Y41, OFFSET(Design!$C$16:$C$20,MATCH($B$4+Y41,Design!$B$16:$B$20,1)-1,0,2), OFFSET(Design!$B$16:$B$20,MATCH($B$4+Y41,Design!$B$16:$B$20,1)-1,0,2))+(Q41-25)*Design!$B$21/1000) -> 0.3652111359 | D41: =IF(Reset=1,$D$4/(B41+$D$4),MIN(($D$4+C41+Y41*LO_DCR/1000*(1+(R41-25)*(Constants!$C$32/100)))/(B41-Y41*S41/1000+C41+$D$4),(Tsw-Min_tOFF_typ)/Tsw)) -> 0.4774202707 | E41: =IF(D41>=(Tsw-Min_tOFF_typ)/Tsw,Tsw-Min_tOFF_typ,IF(Tsw*Efficiency!D41>Constants!$C$19,Tsw*Efficiency!D41,Constants!$C$19)) -> 238.7101354 | F41: =IF(E41=Constants!$C$19,Tsw-Constants!$C$19,IF(Tsw*(1-Efficiency!D41)>Min_tOFF_typ,Tsw*(1-Efficiency!D41),Min_tOFF_typ)) -> 261.2898646 | G41: =IF(Reset=1,(B41)/(L_buckboost*micro)*D41*Tsw*nano,(B41-($B$4+Y41)*(S41/1000+LO_DCR/1000*(1+(R41-A41)*(Constants!$C$32/100))))/(L_buckboost*micro)*D41*Tsw*nano) -> 0.706445094 | H41: 0.0001330526316 | I41: 0.7119336417 | J41: 0.132145252 | K41: 0.2661052632 | L41: 1.11031721 | M41: 0.1947681515 | N41: =(($B$4+Y41)^2+G41^2/12)*(LO_DCR/1000+LO_DCR/1000*(R41-25)*(Constants!$C$32/100)) -> 0.05134138132 | O41: 0.3328164521 | P41: =IF($I$4="None",V_cs^2/RFB_1,VLOOKUP($I$4,Design!$A$99:$F$102,5)) -> 0.0700525394 | Q41: 95.71224833 | R41: 134.9642744 | S41: 255.5657035 | T41: 56.06086512 | U41: 12.4 | V41: 1.759295734 | W41: 4.343257443 | X41: 6.102553177 | Y41: 0.670256953 | Z41: 0.7117115275 | AA41: =IF(R41>=TSD,"TSD",IF(OR(E41=Constants!$C$19,Efficiency!F41=Min_tOFF_typ),IF(E41=Constants!$C$19,"Pulse Skip","Dropout"),"Normal")) -> Normal
A42: =Design!$D$13 -> 85 | B42: 14.84210526 | C42: =IF(Reset=1,VF,FORECAST($B$4+Y42, OFFSET(Design!$C$16:$C$20,MATCH($B$4+Y42,Design!$B$16:$B$20,1)-1,0,2), OFFSET(Design!$B$16:$B$20,MATCH($B$4+Y42,Design!$B$16:$B$20,1)-1,0,2))+(Q42-25)*Design!$B$21/1000) -> 0.3645274054 | D42: =IF(Reset=1,$D$4/(B42+$D$4),MIN(($D$4+C42+Y42*LO_DCR/1000*(1+(R42-25)*(Constants!$C$32/100)))/(B42-Y42*S42/1000+C42+$D$4),(Tsw-Min_tOFF_typ)/Tsw)) -> 0.4663442185 | E42: =IF(D42>=(Tsw-Min_tOFF_typ)/Tsw,Tsw-Min_tOFF_typ,IF(Tsw*Efficiency!D42>Constants!$C$19,Tsw*Efficiency!D42,Constants!$C$19)) -> 233.1721092 | F42: =IF(E42=Constants!$C$19,Tsw-Constants!$C$19,IF(Tsw*(1-Efficiency!D42)>Min_tOFF_typ,Tsw*(1-Efficiency!D42),Min_tOFF_typ)) -> 266.8278908 | G42: =IF(Reset=1,(B42)/(L_buckboost*micro)*D42*Tsw*nano,(B42-($B$4+Y42)*(S42/1000+LO_DCR/1000*(1+(R42-A42)*(Constants!$C$32/100))))/(L_buckboost*micro)*D42*Tsw*nano) -> 0.7215456438 | H42: 0.0001362105263 | I42: 0.7306430559 | J42: 0.1263420247 | K42: 0.2724210526 | L42: 1.129542344 | M42: 0.1958177103 | N42: =(($B$4+Y42)^2+G42^2/12)*(LO_DCR/1000+LO_DCR/1000*(R42-25)*(Constants!$C$32/100)) -> 0.05020868097 | O42: 0.3488021806 | P42: =IF($I$4="None",V_cs^2/RFB_1,VLOOKUP($I$4,Design!$A$99:$F$102,5)) -> 0.0700525394 | Q42: 95.76997407 | R42: 135.8294055 | S42: 256.3962293 | T42: 58.58670103 | U42: 12.4 | V42: 1.794423455 | W42: 4.343257443 | X42: 6.137680898 | Y42: 0.6563457366 | Z42: 0.7076381968 | AA42: =IF(R42>=TSD,"TSD",IF(OR(E42=Constants!$C$19,Efficiency!F42=Min_tOFF_typ),IF(E42=Constants!$C$19,"Pulse Skip","Dropout"),"Normal")) -> Normal
A43: =Design!$D$13 -> 85 | B43: 15.47368421 | C43: =IF(Reset=1,VF,FORECAST($B$4+Y43, OFFSET(Design!$C$16:$C$20,MATCH($B$4+Y43,Design!$B$16:$B$20,1)-1,0,2), OFFSET(Design!$B$16:$B$20,MATCH($B$4+Y43,Design!$B$16:$B$20,1)-1,0,2))+(Q43-25)*Design!$B$21/1000) -> 0.363749158 | D43: =IF(Reset=1,$D$4/(B43+$D$4),MIN(($D$4+C43+Y43*LO_DCR/1000*(1+(R43-25)*(Constants!$C$32/100)))/(B43-Y43*S43/1000+C43+$D$4),(Tsw-Min_tOFF_typ)/Tsw)) -> 0.4557736511 | E43: =IF(D43>=(Tsw-Min_tOFF_typ)/Tsw,Tsw-Min_tOFF_typ,IF(Tsw*Efficiency!D43>Constants!$C$19,Tsw*Efficiency!D43,Constants!$C$19)) -> 227.8868255 | F43: =IF(E43=Constants!$C$19,Tsw-Constants!$C$19,IF(Tsw*(1-Efficiency!D43)>Min_tOFF_typ,Tsw*(1-Efficiency!D43),Min_tOFF_typ)) -> 272.1131745 | G43: =IF(Reset=1,(B43)/(L_buckboost*micro)*D43*Tsw*nano,(B43-($B$4+Y43)*(S43/1000+LO_DCR/1000*(1+(R43-A43)*(Constants!$C$32/100))))/(L_buckboost*micro)*D43*Tsw*nano) -> 0.7359480932 | H43: 0.0001393684211 | I43: 0.7500571113 | J43: 0.1211195999 | K43: 0.2787368421 | L43: 1.150052922 | M43: 0.1967464218 | N43: =(($B$4+Y43)^2+G43^2/12)*(LO_DCR/1000+LO_DCR/1000*(R43-25)*(Constants!$C$32/100)) -> 0.04920401084 | O43: 0.3651628676 | P43: =IF($I$4="None",V_cs^2/RFB_1,VLOOKUP($I$4,Design!$A$99:$F$102,5)) -> 0.0700525394 | Q43: 95.8210532 | R43: 136.7523815 | S43: 257.2822862 | T43: 61.11255366 | U43: 12.4 | V43: 1.831218761 | W43: 4.343257443 | X43: 6.174476204 | Y43: 0.6435974622 | Z43: 0.7034211971 | AA43: =IF(R43>=TSD,"TSD",IF(OR(E43=Constants!$C$19,Efficiency!F43=Min_tOFF_typ),IF(E43=Constants!$C$19,"Pulse Skip","Dropout"),"Normal")) -> Normal
A44: =Design!$D$13 -> 85 | B44: 16.10526316 | C44: =IF(Reset=1,VF,FORECAST($B$4+Y44, OFFSET(Design!$C$16:$C$20,MATCH($B$4+Y44,Design!$B$16:$B$20,1)-1,0,2), OFFSET(Design!$B$16:$B$20,MATCH($B$4+Y44,Design!$B$16:$B$20,1)-1,0,2))+(Q44-25)*Design!$B$21/1000) -> 0.3628834715 | D44: =IF(Reset=1,$D$4/(B44+$D$4),MIN(($D$4+C44+Y44*LO_DCR/1000*(1+(R44-25)*(Constants!$C$32/100)))/(B44-Y44*S44/1000+C44+$D$4),(Tsw-Min_tOFF_typ)/Tsw)) -> 0.4456739448 | E44: =IF(D44>=(Tsw-Min_tOFF_typ)/Tsw,Tsw-Min_tOFF_typ,IF(Tsw*Efficiency!D44>Constants!$C$19,Tsw*Efficiency!D44,Constants!$C$19)) -> 222.8369724 | F44: =IF(E44=Constants!$C$19,Tsw-Constants!$C$19,IF(Tsw*(1-Efficiency!D44)>Min_tOFF_typ,Tsw*(1-Efficiency!D44),Min_tOFF_typ)) -> 277.1630276 | G44: =IF(Reset=1,(B44)/(L_buckboost*micro)*D44*Tsw*nano,(B44-($B$4+Y44)*(S44/1000+LO_DCR/1000*(1+(R44-A44)*(Constants!$C$32/100))))/(L_buckboost*micro)*D44*Tsw*nano) -> 0.7497000319 | H44: 0.0001425263158 | I44: 0.7701405017 | J44: 0.1163961566 | K44: 0.2850526316 | L44: 1.171731816 | M44: 0.1975619036 | N44: =(($B$4+Y44)^2+G44^2/12)*(LO_DCR/1000+LO_DCR/1000*(R44-25)*(Constants!$C$32/100)) -> 0.048309672 | O44: 0.381898513 | P44: =IF($I$4="None",V_cs^2/RFB_1,VLOOKUP($I$4,Design!$A$99:$F$102,5)) -> 0.0700525394 | Q44: 95.8659047 | R44: 137.7279317 | S44: 258.2188145 | T44: 63.63842301 | U44: 12.4 | V44: 1.869554444 | W44: 4.343257443 | X44: 6.212811887 | Y44: 0.6318712494 | Z44: 0.6990807901 | AA44: =IF(R44>=TSD,"TSD",IF(OR(E44=Constants!$C$19,Efficiency!F44=Min_tOFF_typ),IF(E44=Constants!$C$19,"Pulse Skip","Dropout"),"Normal")) -> Normal
A45: =Design!$D$13 -> 85 | B45: 16.73684211 | C45: =IF(Reset=1,VF,FORECAST($B$4+Y45, OFFSET(Design!$C$16:$C$20,MATCH($B$4+Y45,Design!$B$16:$B$20,1)-1,0,2), OFFSET(Design!$B$16:$B$20,MATCH($B$4+Y45,Design!$B$16:$B$20,1)-1,0,2))+(Q45-25)*Design!$B$21/1000) -> 0.3620826914 | D45: =IF(Reset=1,$D$4/(B45+$D$4),MIN(($D$4+C45+Y45*LO_DCR/1000*(1+(R45-25)*(Constants!$C$32/100)))/(B45-Y45*S45/1000+C45+$D$4),(Tsw-Min_tOFF_typ)/Tsw)) -> 0.4360165096 | E45: =IF(D45>=(Tsw-Min_tOFF_typ)/Tsw,Tsw-Min_tOFF_typ,IF(Tsw*Efficiency!D45>Constants!$C$19,Tsw*Efficiency!D45,Constants!$C$19)) -> 218.0082548 | F45: =IF(E45=Constants!$C$19,Tsw-Constants!$C$19,IF(Tsw*(1-Efficiency!D45)>Min_tOFF_typ,Tsw*(1-Efficiency!D45),Min_tOFF_typ)) -> 281.9917452 | G45: =IF(Reset=1,(B45)/(L_buckboost*micro)*D45*Tsw*nano,(B45-($B$4+Y45)*(S45/1000+LO_DCR/1000*(1+(R45-A45)*(Constants!$C$32/100))))/(L_buckboost*micro)*D45*Tsw*nano) -> 0.7628495483 | H45: 0.0001456842105 | I45: 0.7908674773 | J45: 0.1121060474 | K45: 0.2913684211 | L45: 1.19448763 | M45: 0.1983507361 | N45: =(($B$4+Y45)^2+G45^2/12)*(LO_DCR/1000+LO_DCR/1000*(R45-25)*(Constants!$C$32/100)) -> 0.0475114249 | O45: 0.3990091169 | P45: =IF($I$4="None",V_cs^2/RFB_1,VLOOKUP($I$4,Design!$A$99:$F$102,5)) -> 0.0700525394 | Q45: 95.90929049 | R45: 138.7519433 | S45: 259.2018656 | T45: 66.16416228 | U45: 12.4 | V45: 1.909411447 | W45: 4.343257443 | X45: 6.25266889 | Y45: 0.6210513304 | Z45: 0.6946245706 | AA45: =IF(R45>=TSD,"TSD",IF(OR(E45=Constants!$C$19,Efficiency!F45=Min_tOFF_typ),IF(E45=Constants!$C$19,"Pulse Skip","Dropout"),"Normal")) -> Normal
A46: =Design!$D$13 -> 85 | B46: 17.36842105 | C46: =IF(Reset=1,VF,FORECAST($B$4+Y46, OFFSET(Design!$C$16:$C$20,MATCH($B$4+Y46,Design!$B$16:$B$20,1)-1,0,2), OFFSET(Design!$B$16:$B$20,MATCH($B$4+Y46,Design!$B$16:$B$20,1)-1,0,2))+(Q46-25)*Design!$B$21/1000) -> 0.3613396613 | D46: =IF(Reset=1,$D$4/(B46+$D$4),MIN(($D$4+C46+Y46*LO_DCR/1000*(1+(R46-25)*(Constants!$C$32/100)))/(B46-Y46*S46/1000+C46+$D$4),(Tsw-Min_tOFF_typ)/Tsw)) -> 0.4267724579 | E46: =IF(D46>=(Tsw-Min_tOFF_typ)/Tsw,Tsw-Min_tOFF_typ,IF(Tsw*Efficiency!D46>Constants!$C$19,Tsw*Efficiency!D46,Constants!$C$19)) -> 213.386229 | F46: =IF(E46=Constants!$C$19,Tsw-Constants!$C$19,IF(Tsw*(1-Efficiency!D46)>Min_tOFF_typ,Tsw*(1-Efficiency!D46),Min_tOFF_typ)) -> 286.613771 | G46: =IF(Reset=1,(B46)/(L_buckboost*micro)*D46*Tsw*nano,(B46-($B$4+Y46)*(S46/1000+LO_DCR/1000*(1+(R46-A46)*(Constants!$C$32/100))))/(L_buckboost*micro)*D46*Tsw*nano) -> 0.7754360232 | H46: 0.0001488421053 | I46: 0.8122125527 | J46: 0.1081932211 | K46: 0.2976842105 | L46: 1.218238826 | M46: 0.1991136628 | N46: =(($B$4+Y46)^2+G46^2/12)*(LO_DCR/1000+LO_DCR/1000*(R46-25)*(Constants!$C$32/100)) -> 0.04679707096 | O46: 0.4164946792 | P46: =IF($I$4="None",V_cs^2/RFB_1,VLOOKUP($I$4,Design!$A$99:$F$102,5)) -> 0.0700525394 | Q46: 95.95125145 | R46: 139.8207472 | S46: 260.2279173 | T46: 68.68978354 | U46: 12.4 | V46: 1.950696779 | W46: 4.343257443 | X46: 6.293954222 | Y46: 0.6110360569 | Z46: 0.6900681654 | AA46: =IF(R46>=TSD,"TSD",IF(OR(E46=Constants!$C$19,Efficiency!F46=Min_tOFF_typ),IF(E46=Constants!$C$19,"Pulse Skip","Dropout"),"Normal")) -> Normal
A47: =Design!$D$13 -> 85 | B47: =Design!D4 -> 18 | C47: =IF(Reset=1,VF,FORECAST($B$4+Y47, OFFSET(Design!$C$16:$C$20,MATCH($B$4+Y47,Design!$B$16:$B$20,1)-1,0,2), OFFSET(Design!$B$16:$B$20,MATCH($B$4+Y47,Design!$B$16:$B$20,1)-1,0,2))+(Q47-25)*Design!$B$21/1000) -> 0.3606482514 | D47: =IF(Reset=1,$D$4/(B47+$D$4),MIN(($D$4+C47+Y47*LO_DCR/1000*(1+(R47-25)*(Constants!$C$32/100)))/(B47-Y47*S47/1000+C47+$D$4),(Tsw-Min_tOFF_typ)/Tsw)) -> 0.4179154302 | E47: =IF(D47>=(Tsw-Min_tOFF_typ)/Tsw,Tsw-Min_tOFF_typ,IF(Tsw*Efficiency!D47>Constants!$C$19,Tsw*Efficiency!D47,Constants!$C$19)) -> 208.9577151 | F47: =IF(E47=Constants!$C$19,Tsw-Constants!$C$19,IF(Tsw*(1-Efficiency!D47)>Min_tOFF_typ,Tsw*(1-Efficiency!D47),Min_tOFF_typ)) -> 291.0422849 | G47: =IF(Reset=1,(B47)/(L_buckboost*micro)*D47*Tsw*nano,(B47-($B$4+Y47)*(S47/1000+LO_DCR/1000*(1+(R47-A47)*(Constants!$C$32/100))))/(L_buckboost*micro)*D47*Tsw*nano) -> 0.7874953873 | H47: 0.000152 | I47: 0.8341539808 | J47: 0.1046108497 | K47: 0.304 | L47: =SUM(H47:K47) -> 1.242916831 | M47: 0.1998515004 | N47: =(($B$4+Y47)^2+G47^2/12)*(LO_DCR/1000+LO_DCR/1000*(R47-25)*(Constants!$C$32/100)) -> 0.04615639182 | O47: 0.4343552 | P47: =IF($I$4="None",V_cs^2/RFB_1,VLOOKUP($I$4,Design!$A$99:$F$102,5)) -> 0.0700525394 | Q47: 95.99183252 | R47: 140.9312574 | S47: 261.2940071 | T47: 71.2152971 | U47: 12.4 | V47: 1.993332462 | W47: 4.343257443 | X47: 6.336589905 | Y47: 0.6017385019 | Z47: 0.6854250485 | AA47: =IF(R47>=TSD,"TSD",IF(OR(E47=Constants!$C$19,Efficiency!F47=Min_tOFF_typ),IF(E47=Constants!$C$19,"Pulse Skip","Dropout"),"Normal")) -> Normal
A48: =Design!$D$13 -> 85 | B48: =Vin_nom -> 13.5 | C48: =IF(Reset=1,VF,FORECAST($B$4+Y48, OFFSET(Design!$C$16:$C$20,MATCH($B$4+Y48,Design!$B$16:$B$20,1)-1,0,2), OFFSET(Design!$B$16:$B$20,MATCH($B$4+Y48,Design!$B$16:$B$20,1)-1,0,2))+(Q48-25)*Design!$B$21/1000) -> 0.3660553997 | D48: =IF(Reset=1,$D$4/(B48+$D$4),MIN(($D$4+C48+Y48*LO_DCR/1000*(1+(R48-25)*(Constants!$C$32/100)))/(B48-Y48*S48/1000+C48+$D$4),(Tsw-Min_tOFF_typ)/Tsw)) -> 0.4905367774 | E48: =IF(D48>=(Tsw-Min_tOFF_typ)/Tsw,Tsw-Min_tOFF_typ,IF(Tsw*Efficiency!D48>Constants!$C$19,Tsw*Efficiency!D48,Constants!$C$19)) -> 245.2683887 | F48: =IF(E48=Constants!$C$19,Tsw-Constants!$C$19,IF(Tsw*(1-Efficiency!D48)>Min_tOFF_typ,Tsw*(1-Efficiency!D48),Min_tOFF_typ)) -> 254.7316113 | G48: =IF(Reset=1,(B48)/(L_buckboost*micro)*D48*Tsw*nano,(B48-($B$4+Y48)*(S48/1000+LO_DCR/1000*(1+(R48-A48)*(Constants!$C$32/100))))/(L_buckboost*micro)*D48*Tsw*nano) -> 0.6885621922 | H48: 0.0001295 | I48: 0.6917861076 | J48: 0.1394969672 | K48: 0.259 | L48: 1.090412575 | M48: 0.1935366596 | N48: =(($B$4+Y48)^2+G48^2/12)*(LO_DCR/1000+LO_DCR/1000*(R48-25)*(Constants!$C$32/100)) -> 0.05279647825 | O48: 0.3152807 | P48: =IF($I$4="None",V_cs^2/RFB_1,VLOOKUP($I$4,Design!$A$99:$F$102,5)) -> 0.0700525394 | Q48: 95.64451628 | R48: 134.0685659 | S48: 254.7058232 | T48: 53.21912033 | U48: 12.4 | V48: 1.722078952 | W48: 4.343257443 | X48: 6.065336395 | Y48: 0.6875132129 | Z48: 0.7160785751 | AA48: =IF(R48>=TSD,"TSD",IF(OR(E48=Constants!$C$19,Efficiency!F48=Min_tOFF_typ),IF(E48=Constants!$C$19,"Pulse Skip","Dropout"),"Normal")) -> Normal
A50: =B6 -> 6 | B50: =TSD -> 170
A51: =B25 -> 18 | B51: =TSD -> 170

Sheet Snubber
A1: ALLEGRO ALT80802 DESIGN SPREADSHEET
A2: INSTRUCTIONS: Enter design goals and component values in the white boxes.
A3: VARIABLES | B3: MIN | C3: TYP | D3: MAX | E3: UNITS | F3: COMMENTS
A4: LX resonance, FLX | B4: ‒ | C4: 135 | D4: ‒ | E4: MHz | F4: Measured LX resonant frequency
A5: LX resonance, TLX | B5: ‒ | C5: =1000000000/(C4*1000000) -> 7.407407407 | D5: ‒ | E5: ns | F5: LX resonance period
A6: Capacitance of D1 | B6: ‒ | C6: 120 | D6: ‒ | E6: pF | F6: Estimated D1 capacitance at VinTYP
A7: Capacitance, other | B7: ‒ | C7: 50 | D7: ‒ | E7: pF | F7: Estimated FET + PCB trace capacitance
A8: Snubber ‒3dB freq. | B8: ‒ | C8: 2.5 | D8: ‒ | E8: Multiple of fLX | F8: Start with 2.5, decrease for more damping
A9: **** Note: The applications schematic is shown at the bottom of this TAB. **** Schematic component values are shown in BLUE.
A10: COMPONENT | B10: VALUE | C10: UNITS | D10: COMMENTS
A11: Snubber Component Calculations:
A12: LEQ | B12: =1000000000*(C5/1000000000)^2/(4*3.14^2*(C6/1000000000000+C7/1000000000000)) -> 8.183974248 | C12: nH | D12: Equivalent inductance, given fLX and CTOTAL
A13: RSNUB | B13: =SQRT(B12*0.000000001/(C6*0.000000000001+C7*0.000000000001)) -> 6.938373368 | C13: Ω | D13: Snubber resistance, use the closest available standard value
A14: RSNUB = | B14: 6.81 | C14: Ω | D14: Enter the snubber resister value
A15: CSNUB | B15: =1000000000000/C8*(C5/1000000000)/B14 -> 435.0900092 | C15: pF | D15: Snubber capacitance, use the closest available standard value
A16: CSNUB = | B16: 470 | C16: pF | D16: Enter the snubber capacitor value, enter "0" if no snubber is used | K16: Diode D1: Example of Capacitance vs. VR
A17: PSNUB | B17: =1000*0.5*B16/1000000000000*Design!D4^2*IF(ISBLANK(Design!B36),Design!B35,Design!B36)*1000000 -> 152.28 | C17: mW | D17: Snubber resistor power requirement at VinMAX and Fsw
C33: Typical SW frequency measurement before snubber

Sheet Constants
A1: These values are all derived from the data sheet or lab measurements. | R1: Std. Resistors | W1: C values up to 10nF
A2: PARAMETER | B2: MIN | C2: TYP | D2: MAX | E2: UNITS | F2: COMMENTS | R2: E6 | T2: E96 | W2: 1 | X2: 1.2
A3: Input Voltage | B3: 3.8 | D3: 50 | E3: V | F3: Datasheet values | Q3: 1 | R3: 100 | S3: 150 | T3: 100 | U3: 102 | V3: 1 | W3: 1.2 | X3: 1.5
A4: VCS | B4: 0.192 | C4: 0.2 | D4: 0.208 | E4: V | F4: Datasheet values | Q4: =Q3+1 -> 2 | R4: 150 | S4: 220 | T4: 102 | U4: 105 | V4: =V3+1 -> 2 | W4: 1.5 | X4: 1.8
A5: VCS tol | B5: =100*(B4-C4)/C4 -> -4 | C5: ‒ | D5: =100*(D4-C4)/C4 -> 4 | E5: % | F5: Calculated values | Q5: =Q4+1 -> 3 | R5: 220 | S5: 330 | T5: 105 | U5: 107 | V5: =V4+1 -> 3 | W5: 1.8 | X5: 2.2
A6: UVLO Stop | B6: ‒ | C6: 3 | D6: 3.3 | E6: V | F6: Datasheet values | Q6: 4 | R6: 330 | S6: 470 | T6: 107 | U6: 110 | V6: 4 | W6: 3.3 | X6: 3.9
A7: UVLO Hysteresis | B7: 300 | C7: ‒ | D7: ‒ | E7: mV | F7: Datasheet value | Q7: 5 | R7: 470 | S7: 680 | T7: 110 | U7: 113 | V7: 5 | W7: 4.7 | X7: 5.6
A8: UVLO Multiplier | B8: ‒ | C8: 0.5 | D8: ‒ | E8: ‒ | F8: Chosen value, allows for margin | Q8: 6 | R8: 680 | S8: 1000 | T8: 113 | U8: 115 | V8: 6 | W8: 6.8 | X8: 8.2
A9: Maximum output Voltage | B9: 16 | C9: 18 | D9: 20 | E9: V | F9: Datasheet values | R9: E12 | T9: 115 | U9: 118 | V9: 7 | W9: 8.2 | X9: 10
A10: AVOL | B10: ‒ | C10: 60 | D10: ‒ | E10: dB | F10: Datasheet value | Q10: 1 | R10: 100 | S10: 120 | T10: 118 | U10: 121 | V10: 8 | W10: C values greater than 10nF
A11: gm_EA | B11: 100 | C11: 120 | D11: 146 | E11: µA/V | F11: Datasheet values | Q11: 2 | R11: 120 | S11: 150 | T11: 121 | U11: 124 | V11: 9 | W11: 1 | X11: 1.5
A12: Ro_EA | B12: =POWER(10,$C$10/20)/(D11/1000000)/1000000 -> 6.849315068 | C12: =POWER(10,$C$10/20)/(C11/1000000)/1000000 -> 8.333333333 | D12: =POWER(10,$C$10/20)/(B11/1000000)/1000000 -> 10 | E12: MΩ | F12: Calculated values | Q12: 3 | R12: 150 | S12: 180 | T12: 124 | U12: 127 | V12: 10 | W12: 1.5 | X12: 2.2
A13: gm_power | B13: ‒ | C13: 9 | D13: ‒ | E13: A/V | F13: Datasheet value | Q13: 4 | R13: 180 | S13: 220 | T13: 127 | U13: 130 | V13: 11 | W13: 2.2 | X13: 3.3
A14: Slope comp @ 400kHz | B14: ‒ | C14: 0.62 | D14: ‒ | E14: A/µs | F14: Design supplied value | Q14: 5 | R14: 220 | S14: 270 | T14: 130 | U14: 133 | V14: 12 | W14: 3.3 | X14: 4.7
A15: Slope Comp @ 2MHz | B15: ‒ | C15: 3.1 | D15: ‒ | E15: A/µs | F15: Datasheet values | Q15: 6 | R15: 270 | S15: 330 | T15: 133 | U15: 137 | V15: 13 | W15: 4.7 | X15: 6.8
A16: fsw | B16: 0.2 | C16: ‒ | D16: 2.5 | E16: MHz | F16: Datasheet values | Q16: 7 | R16: 330 | S16: 390 | T16: 137 | U16: 140 | V16: 14 | W16: 6.8 | X16: 10
A17: fsw_tol | B17: -10 | C17: ‒ | D17: 10 | E17: % | F17: Datasheet values | Q17: 8 | R17: 390 | S17: 470 | T17: 140 | U17: 143 | V17: 15
A18: ∆fSW | B18: ‒ | C18: 5 | D18: ‒ | E18: % | F18: ±5 Dither frequency | Q18: 9 | R18: 470 | S18: 560 | T18: 143 | U18: 147 | V18: 16
A19: t_onMIN | B19: ‒ | C19: 80 | D19: 100 | E19: ns | F19: Datasheet values, strongly affects Fsw at VinMAX | Q19: 10 | R19: 560 | S19: 680 | T19: 147 | U19: 150 | V19: 17
A20: t_offMIN | B20: ‒ | C20: 100 | D20: ‒ | E20: ns | F20: Datasheet value, strongly affects Fsw at VinMIN | Q20: 11 | R20: 680 | S20: 820 | T20: 150 | U20: 154 | V20: 18
A21: IQ | B21: ‒ | C21: 5 | D21: ‒ | E21: mA | F21: Datasheet value | Q21: 12 | R21: 820 | S21: 1000 | T21: 154 | U21: 158 | V21: 19
A22: RDSon @ 25C | B22: ‒ | C22: 150 | D22: ‒ | E22: mΩ | F22: Design supplied value | R22: E124 | T22: 158 | U22: 162 | V22: 20
A23: TCR of RDSon | B23: ‒ | C23: 0.64 | D23: ‒ | E23: % / °C | F23: Design supplied value | Q23: 1 | R23: 100 | S23: 110 | T23: 162 | U23: 165 | V23: 21
A24: VGS | B24: ‒ | C24: 5 | D24: ‒ | E24: V | F24: Design supplied value | Q24: 2 | R24: 110 | S24: 120 | T24: 165 | U24: 169 | V24: 22
A25: Qg_FET | B25: ‒ | C25: ‒ | D25: 5 | E25: nC | F25: Design supplied value | Q25: 3 | R25: 120 | S25: 130 | T25: 169 | U25: 174 | V25: 23
A26: SW_slew_rise | B26: ‒ | C26: 1.5 | D26: ‒ | E26: V/ns | F26: Measured value | Q26: 4 | R26: 130 | S26: 150 | T26: 174 | U26: 178 | V26: 24
A27: SW_slew_fall | B27: ‒ | C27: 1.2 | D27: ‒ | E27: V/ns | F27: Measured value | Q27: 5 | R27: 150 | S27: 160 | T27: 178 | U27: 182 | V27: 25
A28: Pulse by pulse current limit | B28: 3.5 | C28: 5.5 | D28: 6.5 | E28: A | F28: ILIMMIN at 5% duty cycle, datasheet values | Q28: 6 | R28: 160 | S28: 180 | T28: 182 | U28: 187 | V28: 26
A29: ILIM slope | B29: ‒ | C29: -0.0106 | D29: ‒ | E29: A / % | F29: Curve fit value, slope | Q29: 7 | R29: 180 | S29: 200 | T29: 187 | U29: 191 | V29: 27
A30: ILIM offset | B30: ‒ | C30: 4.9529 | D30: ‒ | E30: A | F30: Curve fit value, offset | Q30: 8 | R30: 200 | S30: 220 | T30: 191 | U30: 196 | V30: 28
A31: TSD_Threshold | B31: ‒ | C31: 170 | D31: ‒ | E31: °C | F31: Thermal Shutdown | Q31: 9 | R31: 220 | S31: 240 | T31: 196 | U31: 200 | V31: 29
A32: TCR of Copper | B32: ‒ | C32: 0.393 | D32: ‒ | E32: %/°C | F32: Known value, used for inductor DCR | Q32: 10 | R32: 240 | S32: 270 | T32: 200 | U32: 205 | V32: 30
Q33: 11 | R33: 270 | S33: 300 | T33: 205 | U33: 210 | V33: 31
A34: nano | B34: =POWER(10,-9) -> 1e-09 | E34: Yes | Q34: 12 | R34: 300 | S34: 330 | T34: 210 | U34: 215 | V34: 32
A35: micro | B35: =POWER(10,-6) -> 1e-06 | E35: No | Q35: 13 | R35: 330 | S35: 360 | T35: 215 | U35: 221 | V35: 33
A36: milli | B36: =POWER(10,-3) -> 0.001 | Q36: 14 | R36: 360 | S36: 390 | T36: 221 | U36: 226 | V36: 34
A37: kilo | B37: =POWER(10,3) -> 1000 | Q37: 15 | R37: 390 | S37: 430 | T37: 226 | U37: 232 | V37: 35
A38: mega | B38: =POWER(10,6) -> 1000000 | Q38: 16 | R38: 430 | S38: 470 | T38: 232 | U38: 237 | V38: 36
A39: giga | B39: =POWER(10,9) -> 1000000000 | Q39: 17 | R39: 470 | S39: 510 | T39: 237 | U39: 243 | V39: 37
Q40: 18 | R40: 510 | S40: 560 | T40: 243 | U40: 249 | V40: 38
Q41: 19 | R41: 560 | S41: 620 | T41: 249 | U41: 255 | V41: 39
Q42: 20 | R42: 620 | S42: 680 | T42: 255 | U42: 261 | V42: 40
Q43: 21 | R43: 680 | S43: 750 | T43: 261 | U43: 267 | V43: 41
Q44: 22 | R44: 750 | S44: 820 | T44: 267 | U44: 274 | V44: 42
Q45: 23 | R45: 820 | S45: 910 | T45: 274 | U45: 280 | V45: 43
Q46: 24 | R46: 910 | S46: 1000 | T46: 280 | U46: 287 | V46: 44
R47: E48 | T47: 287 | U47: 294 | V47: 45
Q48: 1 | R48: 100 | S48: 105 | T48: 294 | U48: 301 | V48: 46
Q49: 2 | R49: 105 | S49: 110 | T49: 301 | U49: 309 | V49: 47
Q50: 3 | R50: 110 | S50: 115 | T50: 309 | U50: 316 | V50: 48
Q51: 4 | R51: 115 | S51: 121 | T51: 316 | U51: 324 | V51: 49
Q52: 5 | R52: 121 | S52: 127 | T52: 324 | U52: 332 | V52: 50
Q53: 6 | R53: 127 | S53: 133 | T53: 332 | U53: 340 | V53: 51
Q54: 7 | R54: 133 | S54: 140 | T54: 340 | U54: 348 | V54: 52
Q55: 8 | R55: 140 | S55: 147 | T55: 348 | U55: 357 | V55: 53
Q56: 9 | R56: 147 | S56: 154 | T56: 357 | U56: 365 | V56: 54
Q57: 10 | R57: 154 | S57: 162 | T57: 365 | U57: 374 | V57: 55
Q58: 11 | R58: 162 | S58: 169 | T58: 374 | U58: 383 | V58: 56
Q59: 12 | R59: 169 | S59: 178 | T59: 383 | U59: 392 | V59: 57
Q60: 13 | R60: 178 | S60: 187 | T60: 392 | U60: 402 | V60: 58
Q61: 14 | R61: 187 | S61: 196 | T61: 402 | U61: 412 | V61: 59
Q62: 15 | R62: 196 | S62: 205 | T62: 412 | U62: 422 | V62: 60
Q63: 16 | R63: 205 | S63: 215 | T63: 422 | U63: 432 | V63: 61
Q64: 17 | R64: 215 | S64: 226 | T64: 432 | U64: 442 | V64: 62
Q65: 18 | R65: 226 | S65: 237 | T65: 442 | U65: 453 | V65: 63
Q66: 19 | R66: 237 | S66: 249 | T66: 453 | U66: 464 | V66: 64
Q67: 20 | R67: 249 | S67: 261 | T67: 464 | U67: 475 | V67: 65
Q68: 21 | R68: 261 | S68: 274 | T68: 475 | U68: 487 | V68: 66
Q69: 22 | R69: 274 | S69: 287 | T69: 487 | U69: 499 | V69: =V68+1 -> 67
Q70: 23 | R70: 287 | S70: 301 | T70: 499 | U70: 511 | V70: 68
Q71: 24 | R71: 301 | S71: 316 | T71: 511 | U71: 523 | V71: 69
Q72: =Q71+1 -> 25 | R72: 316 | S72: 332 | T72: 523 | U72: 536 | V72: 70
Q73: 26 | R73: 332 | S73: 348 | T73: 536 | U73: 549 | V73: 71
Q74: 27 | R74: 348 | S74: 365 | T74: 549 | U74: 562 | V74: 72
Q75: 28 | R75: 365 | S75: 383 | T75: 562 | U75: 576 | V75: 73
Q76: 29 | R76: 383 | S76: 402 | T76: 576 | U76: 590 | V76: 74
Q77: 30 | R77: 402 | S77: 422 | T77: 590 | U77: 604 | V77: 75
Q78: 31 | R78: 422 | S78: 442 | T78: 604 | U78: 619 | V78: 76
Q79: 32 | R79: 442 | S79: 464 | T79: 619 | U79: 634 | V79: 77
Q80: 33 | R80: 464 | S80: 487 | T80: 634 | U80: 649 | V80: 78
Q81: 34 | R81: 487 | S81: 511 | T81: 649 | U81: 665 | V81: 79
Q82: 35 | R82: 511 | S82: 536 | T82: 665 | U82: 681 | V82: =V81+1 -> 80
Q83: 36 | R83: 536 | S83: 562 | T83: 681 | U83: 698 | V83: =V82+1 -> 81
Q84: 37 | R84: 562 | S84: 590 | T84: 698 | U84: 715 | V84: 82
Q85: 38 | R85: 590 | S85: 619 | T85: 715 | U85: 732 | V85: 83
Q86: 39 | R86: 619 | S86: 649 | T86: 732 | U86: 750 | V86: 84
Q87: 40 | R87: 649 | S87: 681 | T87: 750 | U87: 768 | V87: 85
Q88: 41 | R88: 681 | S88: 715 | T88: 768 | U88: 787 | V88: 86
Q89: 42 | R89: 715 | S89: 750 | T89: 787 | U89: 806 | V89: 87
Q90: 43 | R90: 750 | S90: 787 | T90: 806 | U90: 825 | V90: 88
Q91: 44 | R91: 787 | S91: 825 | T91: 825 | U91: 845 | V91: 89
Q92: 45 | R92: 825 | S92: 866 | T92: 845 | U92: 866 | V92: 90
Q93: 46 | R93: 866 | S93: 909 | T93: 866 | U93: 887 | V93: =V92+1 -> 91
Q94: 47 | R94: 909 | S94: 953 | T94: 887 | U94: 909 | V94: =V93+1 -> 92
Q95: 48 | R95: 953 | S95: 1000 | T95: 909 | U95: 931 | V95: 93
T96: 931 | U96: 953 | V96: =V95+1 -> 94
T97: 953 | U97: 976 | V97: =V96+1 -> 95
T98: 976 | U98: 1000 | V98: =V97+1 -> 96

Sheet Sheet1 (hidden)
